Workbook

Sheet Intro
B12: Worksheet key
B13: Worksheet | D13: Description
B15: Inputs | D15: Contains the inputs for all the scenario analyses
B16: Scenario 1 | D16: Scenario 1 analysis
B17: Scenario 2 | D17: Scenario 2 analysis
B18: Scenario 3 | D18: Scenario 3 analysis
B20: Analysis key
C21: Analyses | D21: Description
B22: Scenario 1 | C22: Base case | D22: Scenario 1 - base case results
C23: SA1 | D23: Varying SWL retreatment/ancillary rates
C24: SA2a | D24: Assume have two initial sessions
C25: SA2b | D25: Threshold analysis: the cost of 1 session of SWL to make the comparators cost neutral
C26: SA3 | D26: Pooling retreatment and ancillary procedures
C27: SA4 | D27: Varying proportion of URS that get stents
C28: SA5 | D28: Omitting readmission from the analysis
C29: SA6 | D29: Pooled readmission and major adverse events
C30: SA7 | D30: Pooled minor and major adverse events (readmissions also excluded)
B32: Scenario 2 | C32: Base case | D32: Scenario 2 - base case results
C33: QALY threshold analysis | D33: Incremental QALY needed per patient to make URS cost effective
C34: QoL gain exploratory analyses | D34: Determining QoL difference needed between stone free and non-stone free patient to make URS cost effective
C35: SA8 | D35: Varying initial effectiveness of SWL, two way sensitivity analysis varying time and effectiveness
C36: SA9a | D36: Assume have two initial sessions
C37: SA9b | D37: Threshold analysis: the cost of 1 session of SWL to make the comparators cost neutral
C38: SA10 | D38: Pooling retreatment and ancillary procedures
C39: SA11 | D39: Varying proportion of URS that get stents
B41: Scenario 3 | C41: Base case | D41: Scenario 3 - base case results
C42: Exploratory cost utility analysis | D42: Calculating what the QoL of a non-stone free person needs to be to make URS cost effective
C43: SA12 | D43: Including fourth line treatments
C44: SA13 | D44: Varying the effectiveness of the primary SWL
C45: SA14 | D45: Omitting readmission from the analysis
C46: SA15 | D46: Pooled readmission and major adverse events
C47: SA16 | D47: Pooled minor and major adverse events (readmissions also excluded)
C48: SA17 | D48: Varying proportion of URS that get stents
C49: SA18a | D49: Assume have two initial sessions
C50: SA18b | D50: Threshold analysis: the cost of 1 session of SWL to make the comparators cost neutral

Sheet queries about studies (hidden)
B1: when is stone free rate being measured? | C1: interventional details | D1: what are ancillary procedures? | E1: any other resource use to consider? | F1: adverse event info | G1: avergae no. of sessions of intervention | H1: notes | I1: queries for sophie | K1: more info about SWL group secondary treatments | L1: more information about UrS group secondary treatments | N1: further info
A2: Hendrix 1999 the netherlands 3 months | B2: INITIAL STONE FREE RATE | C2: seems to imply after 1 SWL session. Refers to a mobile lithotriptor. | D2: review is treating ancillary procedures as anything that isnt a repeat of the interventional procedures, so could be URS, PCNL, SWL. But this doesnt include stents (checked this with sophie). How will we cost this up? Maybe take an average of procedure costs? would things like stents after a URS be included in teh NHS ref cost anyway? | E2: what about imaging after an SWL as another appointment to confirm stone has gone? This is probably not included in NHS ref SWL cost as would be a seprate follow up. | F2: reports minor (bleeding) and major (perforation) | G2: 1 | H2: No. of procedures is the outcome. But also states that 31 of 69 people after SWL needed frther treatment, and 8 of 87 after URS. 31 patients in SWL required 37 extra treatments, and the 8 in URS needed 9 extra treatments. definition of auxillary procedure quite open as can be anyhting from stent/catheter to open surgery/PCNL. | I2: should the effectiveness of the initial SWL be 38 rather than 35? (this would be for all the groups together | K2: the 31 patients that needed further treatment in SWL required 37 extra treatments | L2: the 8 pateitns that needed further treatment needed 9 extra treatments | R2: changed this
I3: "the outcome was determined on a regularly planned outpatient visit 2 weeks after treatment in 77.5%, and 12 weeks after treatment in 16.6%, and during an intercurrent visit or after calling in 5.7%". The outcome must be stone free as this is being talked about in teh prior sentence. | O3: do we need to rethink the outcome timeframe of this study? | R3: leave as is
I4: is this study too old - maybe SWL machines have changed? | R4: sophie to check
K5: from the study;
J6: total number of procedures per treatment sequence | K6: 1st Tx | L6: 2nd Tx | M6: 3rd Tx | N6: no. of people | P6: total stone free | R6: the 'total stone free' doesn’t match the resource use, so can I assume that those who don’t go onto a third suquence are stone free, but some of those who have a third line treatment must not be stone free. But I don’t know who from either the third line following a second line retreatmetn or a second line ancillary are the ones that failed.
I7: SWL | J7: 1 | K7: SWL | L7: - | M7: - | N7: 38
J8: 2 | K8: SWL | L8: SWL | M8: - | N8: 5 | S8: initial Tx | U8: 2nd Tx | W8: 3rd Tx | Y8: people | Z8: prob | AE8: initial Tx | AG8: 2nd Tx | AI8: 3rd Tx | AK8: people | AL8: prob
J9: 3 | K9: SWL | L9: SWL | M9: URS | N9: 2 | Q9: =N16 -> 69 | R9: SWL | S9: SF | Y9: =N7 -> 38 | Z9: =Y9/Q9 -> 0.5507246377 | AA9: first line SF | AC9: =N22 -> 87 | AD9: URS | AE9: SF | AK9: =N18 -> 79 | AL9: =AK9/AC9 -> 0.908045977 | AM9: first line SF
J10: 3 | K10: SWL | L10: SWL | M10: open surgery | N10: 1 | S10: NSF | Y10: =Q9-Y9 -> 31 | Z10: =Y10/Q9 -> 0.4492753623 | AE10: NSF | AK10: =AC9-AK9 -> 8 | AL10: =AK10/AC9 -> 0.09195402299
J11: 2 | K11: SWL | L11: URS | M11: - | N11: 16 | T11: retreat | Y11: =SUM(N8:N10) -> 8 | Z11: =Y11/Y10 -> 0.2580645161 | AF11: retreat | AK11: 0 | AL11: 0
J12: 3 | K12: SWL | L12: URS | M12: URS | N12: 1 | U12: SF | Y12: =N8 -> 5 | Z12: =Y12/Y11 -> 0.625 | AA12: retreatment SF | AG12: SF | AK12: 0 | AL12: 0 | AM12: no retreatment
J13: 3 | K13: SWL | L13: URS | M13: open surgery | N13: 2 | U13: NSF | Y13: =SUM(N9:N10) -> 3 | Z13: =Y13/Y11 -> 0.375 | AG13: NSF | AK13: 0 | AL13: 0
J14: 2 | K14: SWL | L14: open surgery | M14: - | N14: 1 | V14: anc | Y14: =(N9+N10) -> 3 | AH14: anc
J15: 2 | K15: SWL | L15: PNL | M15: - | N15: 3 | W15: SF | Y15: ? | Z15: ? | AA15: 3rd line ancillary SF | AI15: SF
I16: total | J16: =SUMPRODUCT(J7:J15,N7:N15) -> 106 | N16: =SUM(N7:N15) -> 69 | O16: patients | P16: 64 | Q16: =P16/N16 -> 0.9275362319 | W16: NSF | Y16: ? | Z16: ? | AI16: NSF
I18: URS | J18: 1 | K18: URS | L18: - | M18: - | N18: 79 | T18: anc | Y18: =SUM(N11:N15) -> 23 | Z18: =Y18/Y10 -> 0.7419354839 | AF18: anc | AK18: =SUM(N19:N21) -> 8 | AL18: =AK18/AC9 -> 0.09195402299
J19: 2 | K19: URS | L19: SWL | M19: - | N19: 5 | U19: SF | Y19: =(N11+N14+N15) -> 20 | Z19: =Y19/Y18 -> 0.8695652174 | AA19: ancillary stone free | AG19: SF | AK19: =SUM(N19+N21) -> 7 | AL19: =AK19/AK18 -> 0.875 | AM19: ancillary stone free
J20: 3 | K20: URS | L20: SWL | M20: URS | N20: 1 | U20: NSF | Y20: =SUM(N12+N13) -> 3 | Z20: =Y20/Y18 -> 0.1304347826 | AG20: NSF | AK20: =N20 -> 1 | AL20: =AK20/AK18 -> 0.125
J21: 2 | K21: URS | L21: PNL | M21: - | N21: 2 | V21: anc | AH21: anc | AK21: =N20 -> 1
I22: total | J22: =SUMPRODUCT(J18:J21,N18:N21) -> 96 | N22: =SUM(N18:N21) -> 87 | O22: patients | P22: 86 | Q22: =P22/N22 -> 0.9885057471 | W22: SF | Y22: ? | Z22: ? | AA22: 3rd line ancillary SF | AI22: SF | AK22: ? | AL22: ?
W23: NSF | Y23: ? | Z23: ? | AI23: NSF | AK23: ? | AL23: ?
M24: SWL | N24: URS
K25: initial stone free | M25: =N7 -> 38 | N25: =N18 -> 79 | T25: separate out PCNL as well?
K26: retreatments reported in review | M26: =N8+N9+N10 -> 8 | N26: =N20 -> 1
I27: if someone had an ancillary twice (so both second and third line then should we count this - I think this is what I meant to ask sophie about) | K27: ancillaries reported in review | M27: =N9+N10+N11+N12+N13++N14+N15 -> 26 | N27: =N19+N20+N21 -> 8
I28: As with above we are double counting people for retreatments and ancillaries, but not within the same outcome e.g. ancillares | K28: number of people | M28: =SUM(M25:M27) -> 72 | N28: =SUM(N25:N27) -> 88 | O28: over counting people here for SWL! | Q28: But maybe that way the assumption will still stand that everyone will end up stone free if we overestimate costs a bit instead of underestimate?
K29: ancillaries that could be reported? - | M29: =N9+N10+N11+(N12*2)+(N13*2)+N14+N15 -> 29 | N29: =N19+N20+N21 -> 8 | O29: if counting number of procedures
M31: =M25+(69-M25)+M26+M29 -> 106 | N31: =N25+(87-N25)+N26+N29 -> 96 | O31: total number of procedures
A34: Kumar 2015 3 months | B34: IMPLIES INTIAL STONE FREE RATE AS SAYS 'STONE FREE AFTER INITIAL SWL SESSION OR URS WAS DEFINED AS RADIOLOGIC ABSENCE OF A STONE…AT 3 MONTHS' | C34: a max of 4 sessions of SWL were given so unclear. 'retreatment SWL given for incomplete clearance' - so can we assume 1 was given initally and up to 3 more could be retreatment? | D34: URS and PCNL were auxillary procedures performed after failed SWL | E34: all URS's had a stent. May not need to consider insertion cost but probably removal cost? Would some SWL's have a stent? | F34: reports a minor of UTI. No majors. | G34: ? | H34: retreatment rate as a percentage is the outcome rather than number of people that had a retreatment | N34: "modified EQ was used to distinguish between patients who became stone free by SWL/URS alone and those who were stone free by an auxillary procedure" | O34: can we back calculate from this?
K36: EQ is calculated using the formula: Stone free (%) × 100/(100 + retreatment rate (%) + auxiliary procedures (%).
K37: EQ modified = % stone-free patients - % of curative auxiliary measures/100% + % of repeat SWL + % of pre-SWL auxiliary measures + % of post-SWL adjuvant measures
K40: SWL | L40: URS
J41: no. of poeple | K41: 53 | L41: 49
J42: retreatment rate | K42: =25/53 -> 0.4716981132 | L42: =3/L41 -> 0.0612244898
J43: auxillary rate | K43: =9/K41 -> 0.1698113208 | L43: =4/L41 -> 0.08163265306
J44: stone free rate 3 months | K44: =45/K41 -> 0.8490566038 | L44: =43/L41 -> 0.8775510204 | M44: 45 | N44: 43
I45: does sophie know how they get this? | J45: modified EQ | K45: 0.691 | L45: 0.892
K47: =SUM(K42:K44) -> 1.490566038 | L47: =SUM(L42:L44) -> 1.020408163
I49: EQ equation: | J49: denominator | K49: =1+K42+K43 -> 1.641509434 | L49: =1+L42+L43 -> 1.142857143
J50: modified EQ | K50: 0.691 | L50: =L45 -> 0.892
J51: stone free? | K51: =K50*K49 -> 1.134283019 | L51: =L50*L49 -> 1.019428571 | N51: doesn’t make sense
I53: if assume stone free rate is the initial one | K53: =K44/(1+K42+K43) -> 0.5172413793 | L53: =L44/(1+L42+L43) -> 0.7678571429
I55: modified EQ
I56: don’t have all the other parts of the equation? | K56: =(K44+K42)/(1+K43) -> 1.129032258 | L56: =(L44+L42)/(1+L43) -> 0.8679245283
I57: but text in kumar implies retreatments are included in the numerator?
I59: or does this mean stone free rate includes retreatments? | K59: =K44/(1+K43) -> 0.7258064516 | L59: =L44/(1+L43) -> 0.8113207547
I61: checking assumption that adding resource use will get everyone stone free if it’s the initial stone free rate;
K63: =SUM(K42:K44) -> 1.490566038 | L63: =SUM(L42:L44) -> 1.020408163 | N63: sort of applies to URS, bt not so much to SWL, and this may be to do with the number of session of SWL
B65: unclear if people could have had more than one retreatment/ancillary.
B66: unclear if everyone is stone free at end
K69: SWL | L69: URS
A70: Zhang 2011 | B70: SAYS INITIAL STONE FREE RATE | C70: seems to imply 1 SWL | E70: stent left after URS. Seems to be stent or SWL done as ancillary after failed URS. | F70: need to double check classifications of major and minor | G70: 1 | H70: number of peole reported that had retreatment/ancillaries not number of procedures. Retreat and ancillary seem to be different not seqeuntial. | K70: URS is the ancillary for SWL. | L70: SWL is the auxillary procedure. So if anyhting we have overestimted costs for that in the costing?
J71: no of people | K71: 257 | L71: 269
J72: initial SF | K72: 227 | L72: 250
B73: 2 wk timeframe | J73: non SF | K73: =K71-K72 -> 30 | L73: =L71-L72 -> 19
J75: second SWL | K75: 20 | N75: =K75/K71 -> 0.07782101167
J76: second URS | L76: 0
J77: ancillary = SWL | L77: 11
J78: ancillary URS | K78: 4 | N78: =K78/K71 -> 0.01556420233 | O78: =(K72/K71) -> 0.8832684825 | P78: =O78/(1+N75+N78) -> 0.8078291815
J79: total procedures | K79: =(K71*1)+SUM(K75:K78) -> 281 | L79: =(L71*1)+SUM(L75:L78) -> 280
J80: sum | K80: =SUM(K75:K78) -> 24 | L80: =SUM(L75:L78) -> 11
K82: extra 6 just had fever | L82: extra 8 were either managed with stents or drugs | O82: I am already assuming a certain proportion of stent use, so I can just vary that in an SA?
O83: but the study aslo says DJ stent was left universally for 2-4 weeks after URL.
B84: ASSUMPTION STANDS OF EVERYONE BEING STONE FREE AFTER RESOURCE USE
A87: Sarica 2017 | B87: doesn’t actually say but implied initial because describes how the failures were treated. | C87: says a 'single session' in the discussion. | D87: not relevant if after the outcome measured? States that "patients requiring stent and/or auxillaries were excluded due to possible effects of these o QoL" - bias _ oversteimate effectiveness and underestimate ancillaries? | G87: 1 | H87: Number of people needing retreatments that is reported rather than number of procedures. Each arm had either all retreatment for failures or all ancillareis so confusion between these being sequential or not is a not a problem. | K87: SWL | L87: URS
J88: no of people | K88: 34 | L88: 31
B89: 4 wk timeframe | J89: initial SF | K89: 25 | L89: 26
J90: non SF | K90: =K88-K89 -> 9 | L90: =L88-L89 -> 5
J92: second SWL
J93: second URS | L93: 5 | O93: =L93/L88 -> 0.1612903226
J94: ancillary = SWL
J95: ancillary URS | K95: 9 | N95: =K95/K88 -> 0.2647058824
J96: total procedures | K96: =(K88*1)+SUM(K92:K95) -> 43 | L96: =(L88*1)+SUM(L92:L95) -> 36
J97: sum | K97: =SUM(K92:K95)+K89 -> 34 | L97: =SUM(L92:L95)+L89 -> 31
B100: ASSUMPTION STANDS OF EVERYONE BEING STONE FREE AFTER RESOURCE USE
A104: Salem 2009 | B104: says stone free rate after primary procedure | C104: as outcomes are after initial procedure then can we assume 1 SWL? | D104: not relevant if after the outcome measured? | E104: stents left in pateints with large stones/extravasations | F104: has some complication outcomes but doesnt say what stone size group relates to? - check with sophie | G104: 1 | H104: Number of people needing retreatments that is reported rather than number of procedures. Retreat and ancillaries talked about as if they are separate and not seequential. | K104: SWL | L104: URS
J105: no of people | K105: 58 | L105: 52
J106: initial SF | K106: 46 | L106: 52
B107: 2 wk timeframe | J107: non SF | K107: =K105-K106 -> 12 | L107: =L105-L106 -> 0
J109: second SWL | K109: 10 | N109: =K109/K105 -> 0.1724137931
J110: second URS
J111: ancillary = SWL
J112: ancillary URS | K112: 2 | N112: =K112/K105 -> 0.03448275862
J113: total procedures | K113: =(K105*1)+SUM(K109:K112) -> 70 | L113: =(L105*1)+SUM(L109:L112) -> 52
J114: sum | K114: =SUM(K109:K112)+K106 -> 58 | L114: =SUM(L109:L112)+L106 -> 52
B117: ASSUMPTION STANDS OF EVERYONE BEING STONE FREE AFTER RESOURCE USE
A121: Verze 2010 | B121: stone free rate AFTER retreatments/ancillaries | C121: retreatments are reported and included so doesn’t need to be factored into average number of sessions. | D121: ancillary procedures reported as stenting so shouldn’t be inlcuded as reviewers arent coungting that as ancillary. It does talk about the failed SWL's having URS but that seems to be the same number that werent stone free so that would be double counting again. Says "the need for SWL or ureterolithotomy in URS group and need for URS and ureterolith... in SWL groups were considered failures." so are these the ancilllary procedures being defined? | F121: has some complication outcomes but desont say what stone size group relates to? - check with sophie | G121: 1.5823 average number of sessions to clear the stone? | H121: reported for the whole study not just the small stone group; 'in 70 cases (55.11%) one SWL session was enough to clear stone, in 31.49% it was 2, and in 13.38% it was 3. = average of around 1.5 sessions. Number of people needing retreatments that is reported rather than number of procedures. ancillaries not extracted from here anyway as its about stents | K121: SWL | L121: URS | N121: the study reports outcomes of 'overall stone free', 'stone free requiring retreatments', and 'stone free requiring auxillary procedures'. Could the initial stone free rate be backcalculated from this?
J122: no of people | K122: 69 | L122: 66
J124: overall SF (at 3 months) | K124: 66 | L124: 63
J125: SF requiring retreat | K125: 8 | L125: 3 | N125: could also include people that had more than 2 sessions
J126: SF requiring ancillaries | N126: stents
J128: still need Tx at 3 months | K128: =K122-K124 -> 3 | L128: =L122-L124 -> 3
J130: =retreat + ancill | K130: =SUM(K125:K126) -> 8 | L130: =SUM(L125:L126) -> 3 | N130: assuming no overlap between ancillaries and retreatments (i.e. assume mutually exclusive)
J131: initial effectiveness | K131: =K124-K130 -> 58 | L131: =L124-L130 -> 60
J132: % | K132: =K131/K122 -> 0.8405797101 | L132: =L131/L122 -> 0.9090909091 | N132: don’t know how many stone free, one reason is because don’t count stents procedures as ancillaries, and secondly
J134: 3 month SF % | K134: =K124/K122 -> 0.9565217391 | L134: =L124/L122 -> 0.9545454545
B135: NOT EVERYONE STONE FREE AT END OF TRIAL
A139: Pearle 2001 | B139: must be included as timepoint of 3 months but no retreatment or ancillary procedures reported. Unless primary treatments effective for all. | C139: doesn’t mention any | D139: most URS's had stents after (91%) | E139: 1 minor of a fever. | F139: ?
B140: there is no retreatment/ancillaries reported so this study has no secondary treatment outcomes.
I141: is this study too old - maybe SWL machines have changed?
B143: unclear if initial stone free rates or how many procedures
A147: Study summaries for report
A149: study | C149: Hendrikx 1999 | E149: Salem 2009 | G149: Sarica 2017 | I149: Zhang 2011 | K149: Kumar 2015A | M149: Verze 2010 | O149: Pearle 2001
A150: timeframe | C150: 3 months | E150: 2 weeks | G150: 4 weeks | I150: 2 weeks | K150: 3 months | M150: 3 months | O150: 3 months
A151: reporting number initial SF | C151: yes | E151: yes | G151: yes | I151: yes | K151: unclear | M151: no | O151: unclear
A152: reporting retreatments | C152: yes | E152: yes | G152: yes | I152: yes | K152: yes | M152: yes | O152: no
A153: reporting ancillary procedures | C153: yes | E153: yes | G153: yes | I153: yes | K153: yes | M153: no | O153: no
A154: reporting outcome as people or procedure numbers | C154: both | E154: people | G154: people | I154: people | K154: unclear | M154: unclear | O154: people
A155: protocol for further treatment | C155: no special criteria. | E155: no criteria stated. | G155: no criteria stated.
C156: SWL | D156: URS | E156: SWL | F156: URS | G156: SWL | H156: URS | I156: SWL | J156: URS | K156: SWL | L156: URS | M156: SWL | N156: URS | O156: SWL | P156: URS
C157: most people failing SWL had ancillaries. | D157: most people failing primary URS got other procedures except for 1. | E157: mostly retreatments | G157: those in SWL arm that failed were treated with URS | H157: those in URS arm that failed were treated with URS again. | I157: repeat SWL or URS were performed when residual fragments remained. | J157: URS patients had auxiliary SWL when there were residual fragments. | K157: Retreatment of SWL given for incomplete clearance. URS and PCNL were auxiliary procedures after failed SWL. | L157: not specified | M157: If significant fragments remained after first treatment of SWL, patients were instructed to return for a further session. The need for URS or ureterolithotomy in SWL group were recorded as treatmet failures. | N157: The need for SWL or ureterolithotomy in URS group were recorded as treatmet failures. | O157: NA | P157: NA
A158: SWL intervention information | C158: Seems to imply after 1 SWL session from the use of the word ‘initial’. Refers to a mobile lithotriptor. | E158: Seems to imply after 1 SWL session from the use of the word ‘initial’. | G158: Says a 'single session' in the discussion. | I158: Seems to imply after 1 SWL session from the use of the word ‘initial’. | K158: Unclear how many sessions on average. States a max of 4 sessions of were given. 'retreatment SWL given for incomplete clearance'. | M158: 1.5823 average number of sessions to clear the stone? reported for the whole study not just the small stone group; 'in 70 cases (55.11%) one SWL session was enough to clear stone, in 31.49% it was 2, and in 13.38% it was 3. = average of around 1.5 sessions. Number of people needing retreatments that is reported rather than number of procedures. | O158: no mention of number of session

Sheet Inputs
A1: CLINICAL DATA
A3: Original Data
B5: Raw trial data
B6: feeding into model
B9: Study | C9: Hendrikx 1999 | E9: Salem 2009 | G9: Sarica 2017 | I9: Zhang 2011 | K9: Kumar 2015A | M9: Verze 2010 | O9: Pearle 2001 | S9: Pooled data
B10: Timeframe | C10: 3 months | E10: 2 weeks | G10: 4 weeks | I10: 2 weeks | K10: 3 months | M10: 3 months | O10: 3 months | S10: Scenario 1 | V10: Scenario 2 | Y10: Scenario 3
B11: Intervention | C11: SWL | D11: URS | E11: SWL | F11: URS | G11: SWL | H11: URS | I11: SWL | J11: URS | K11: SWL | L11: URS | M11: SWL | N11: URS | O11: SWL | P11: URS | S11: URS | T11: RR | U11: SWL | V11: URS | W11: RR | X11: SWL | Y11: URS | Z11: RR | AA11: SWL
B12: Total participants | C12: 69 | D12: 87 | E12: 58 | F12: 52 | G12: 34 | H12: 31 | I12: 257 | J12: 269 | K12: 53 | L12: 49 | M12: 69 | N12: 66 | O12: 29 | P12: 29 | V12: =SUM(F12,H12,J12) -> 352
A13: OUTCOME | O13: 32 | P13: 32
A14: STONE FREE | B14: Events | C14: 38 | D14: 79 | E14: 46 | F14: 52 | G14: 25 | H14: 26 | I14: 227 | J14: 250 | K14: 45 | L14: 43 | M14: 66 | N14: 63 | O14: 29 | P14: 29 | V14: =SUM(F14,H14,J14) -> 328
B15: Probability | C15: =C14/C12 -> 0.5507246377 | D15: 0.908045977 | E15: 0.7931034483 | F15: 1 | G15: 0.7352941176 | H15: 0.8387096774 | I15: 0.8832684825 | J15: 0.9293680297 | K15: 0.8490566038 | L15: 0.8775510204 | M15: 0.9565217391 | N15: 0.9545454545 | O15: 1 | P15: 1 | V15: =V14/V12 -> 0.9318181818 | W15: 0.88 | X15: =V15*W15 -> 0.82
B16: What outcome is it reporting? | C16: initial stone free | E16: initial stone free | G16: initial stone free | I16: initial stone free | K16: unclear | M16: NOT initial stone free | O16: unclear - but no retreat/anc reported
B17: % stone free at end of study | C17: 0.93 | D17: 0.99 | E17: 1 | F17: 1 | G17: 1 | H17: 1 | I17: 1 | J17: 1 | K17: Unclear | L17: Unclear | M17: 0.96 | N17: 0.95 | O17: 1 | P17: 1
A18: RETREATMENTS | R18: Total participants | S18: =SUM(D12,F12,H12,J12,L12,N12) -> 554 | V18: =V12 -> 352
B19: Events | C19: 8 | D19: 1 | E19: 10 | F19: 0 | G19: 0 | H19: 5 | I19: 20 | J19: 0 | K19: 25 | L19: 3 | M19: 8 | N19: 3 | O19: NR | P19: NR | S19: =SUM(D19,F19,H19,J19,L19,N19) -> 12 | V19: =SUM(F19,H19,J19) -> 5
B20: Probability | C20: =C19/C12 -> 0.115942029 | D20: =D19/D12 -> 0.01149425287 | E20: 0.1724137931 | F20: 0 | G20: 0 | H20: 0.1612903226 | I20: 0.07782101167 | J20: 0 | K20: 0.4716981132 | L20: 0.0612244898 | M20: 0.115942029 | N20: 0.04545454545 | S20: =S19/S18 -> 0.02166064982 | T20: 5.01 | U20: =S20*T20 -> 0.1085198556 | V20: =V19/V18 -> 0.01420454545 | W20: 4.1 | X20: =V20*W20 -> 0.05823863636
A21: ANCILLARY PROCEDURES | R21: Total participants | S21: =SUM(D12,F12,H12,J12,L12,N12) -> 554 | V21: =V12 -> 352
B22: Events | C22: 29 | D22: 8 | E22: 2 | F22: 0 | G22: 9 | H22: 0 | I22: 4 | J22: 11 | K22: 9 | L22: 4 | M22: 0 | N22: 0 | O22: NR | P22: NR | S22: =SUM(D22,F22,H22,J22,L22,N22) -> 23 | V22: =SUM(F22,H22,J22) -> 11
B23: Probability | C23: =C22/C12 -> 0.4202898551 | D23: =D22/D12 -> 0.09195402299 | E23: 0.03448275862 | F23: 0 | G23: 0.2647058824 | H23: 0 | I23: 0.01556420233 | J23: 0.04089219331 | K23: 0.1698113208 | L23: 0.08163265306 | M23: =M22/M12 -> 0 | N23: =N22/N12 -> 0 | S23: =S22/S21 -> 0.04151624549 | T23: 2.38 | U23: =S23*T23 -> 0.09880866426 | V23: =V22/V21 -> 0.03125 | W23: 2.44 | X23: =V23*W23 -> 0.07625
A24: READMISSIONS | R24: Total participants | S24: =P13 -> 32
B25: Events | C25: NR | D25: NR | E25: NR | F25: NR | G25: NR | H25: NR | I25: NR | J25: NR | K25: NR | L25: NR | M25: NR | N25: NR | O25: 2 | P25: 4 | S25: =P25 -> 4
B26: Probability | O26: =O25/O13 -> 0.0625 | P26: =P25/P13 -> 0.125 | S26: =S25/S24 -> 0.125 | T26: 0.5 | U26: =S26*T26 -> 0.0625 | V26: =S26 -> 0.125 | X26: =U26 -> 0.0625
A27: MINOR ADVERSE EVENTS | B27: Total participants | E27: 100 | F27: 100 | R27: Total participants | S27: =SUM(D12,F27,J12,L12,P13) -> 537
B28: Events | C28: 1 | D28: 0 | E28: 0 | F28: 6 | G28: NR | H28: NR | I28: 6 | J28: 4 | K28: 0 | L28: 1 | M28: NR | N28: NR | O28: 0 | P28: 1 | S28: =SUM(D28,F28,J28,L28,P28) -> 12
B29: Probability | C29: =C28/C12 -> 0.01449275362 | D29: =D28/D12 -> 0 | E29: =E28/E27 -> 0 | F29: =F28/F27 -> 0.06 | I29: =I28/I12 -> 0.0233463035 | J29: =J28/J12 -> 0.01486988848 | K29: 0 | L29: 0.02040816327 | O29: =O28/O13 -> 0 | P29: =P28/P13 -> 0.03125 | S29: =S28/S27 -> 0.02234636872 | T29: 0.67 | U29: =S29*T29 -> 0.01497206704 | V29: =S29 -> 0.02234636872 | X29: =U29 -> 0.01497206704
A30: MAJOR ADVERSE EVENTS | R30: Total participants | S30: =SUM(D12,J12) -> 356
B31: Events | C31: 0 | D31: 9 | E31: NR | F31: NR | G31: NR | H31: NR | I31: 0 | J31: 3 | K31: NR | L31: NR | M31: NR | N31: NR | O31: NR | P31: NR | S31: =SUM(D31,J31) -> 12
B32: Probability | C32: =C31/C12 -> 0 | D32: =D31/D12 -> 0.1034482759 | I32: =I31/I12 -> 0 | J32: =J31/J12 -> 0.01115241636 | S32: =S31/S30 -> 0.03370786517 | T32: 0.15 | U32: =S32*T32 -> 0.005056179775 | V32: =S32 -> 0.03370786517 | X32: =U32 -> 0.005056179775
A33: FOR SCENARIO 3 ONLY:
A34: stone free from first line treatment only
B35: Events | C35: 38 | D35: 79 | E35: NR | F35: NR | G35: NR | H35: NR | I35: NR | J35: NR | K35: NR | L35: NR | M35: NR | N35: NR | O35: NR | P35: NR
B36: Probability | C36: =C35/C12 -> 0.5507246377 | D36: =D35/D12 -> 0.908045977 | Y36: =D36 -> 0.908045977 | AA36: =C36 -> 0.5507246377
A37: second line retreatment if primary treatment failure
B38: Events | C38: 8 | D38: 0 | E38: NR | F38: NR | G38: NR | H38: NR | I38: NR | J38: NR | K38: NR | L38: NR | M38: NR | N38: NR | O38: NR | P38: NR
B39: Probability | C39: =C38/(C12-C35) -> 0.2580645161 | D39: =D38/(D12-D35) -> 0 | Y39: =D39 -> 0 | AA39: =C39 -> 0.2580645161
A40: stone free after second line retreatment
B41: Events | C41: 5 | D41: 0 | E41: NR | F41: NR | G41: NR | H41: NR | I41: NR | J41: NR | K41: NR | L41: NR | M41: NR | N41: NR | O41: NR | P41: NR
B42: Probability | C42: =C41/C38 -> 0.625 | D42: 0 | Y42: =D42 -> 0 | AA42: =C42 -> 0.625
A43: second line ancillary if primary treatment failure
B44: Events | C44: 23 | D44: 8 | E44: NR | F44: NR | G44: NR | H44: NR | I44: NR | J44: NR | K44: NR | L44: NR | M44: NR | N44: NR | O44: NR | P44: NR
B45: Probability | C45: =C44/(C12-C35) -> 0.7419354839 | D45: =D44/(D12-D35) -> 1 | Y45: =D45 -> 1 | AA45: =C45 -> 0.7419354839
A46: stone free after second line ancillary
B47: Events | C47: 20 | D47: 7 | E47: NR | F47: NR | G47: NR | H47: NR | I47: NR | J47: NR | K47: NR | L47: NR | M47: NR | N47: NR | O47: NR | P47: NR
B48: Probability | C48: =C47/C44 -> 0.8695652174 | D48: =D47/D44 -> 0.875 | Y48: =D48 -> 0.875 | AA48: =C48 -> 0.8695652174
A49: third line treatment
B50: Events | C50: 6 | D50: 1 | E50: NR | F50: NR | G50: NR | H50: NR | I50: NR | J50: NR | K50: NR | L50: NR | M50: NR | N50: NR | O50: NR | P50: NR
B51: Probability
A52: stone free after third line treatment | B52: stone free at end of trial | C52: 64 | D52: 86 | E52: NR | F52: NR | G52: NR | H52: NR | I52: NR | J52: NR | K52: NR | L52: NR | M52: NR | N52: NR | O52: NR | P52: NR
B53: Events | C53: =C12-C52 -> 5 | D53: =D12-D52 -> 1 | E53: NR | F53: NR | G53: NR | H53: NR | I53: NR | J53: NR | K53: NR | L53: NR | M53: NR | N53: NR | O53: NR | P53: NR
B54: Probability | C54: =(C50-C53)/C50 -> 0.1666666667 | D54: =(D50-D53)/D50 -> 0 | Y54: =D54 -> 0 | AA54: =C54 -> 0.1666666667
A55: Proportion of second line ancillary treatments that are PCNL
B56: Events | C56: 3 | D56: 2 | E56: NR | F56: NR | G56: NR | H56: NR | I56: NR | J56: NR | K56: NR | L56: NR | M56: NR | N56: NR | O56: NR | P56: NR
B57: Probability | C57: =C56/C44 -> 0.1304347826 | D57: =D56/D44 -> 0.25 | Y57: =D57 -> 0.25 | AA57: =C57 -> 0.1304347826
A58: Proportion of second line ancillary treatments that are URS
B59: Events | C59: 20 | D59: 0 | E59: NR | F59: NR | G59: NR | H59: NR | I59: NR | J59: NR | K59: NR | L59: NR | M59: NR | N59: NR | O59: NR | P59: NR
B60: Probability | C60: =C59/C44 -> 0.8695652174 | D60: =0/D44 -> 0 | Y60: =D60 -> 0 | AA60: =C60 -> 0.8695652174
A61: Proportion of second line ancillary treatments that are SWL
B62: Events | C62: 0 | D62: 6 | E62: NR | F62: NR | G62: NR | H62: NR | I62: NR | J62: NR | K62: NR | L62: NR | M62: NR | N62: NR | O62: NR | P62: NR
B63: Probability | C63: =C62/C44 -> 0 | D63: =D62/D44 -> 0.75 | Y63: =D63 -> 0.75 | AA63: =C63 -> 0
A64: Proportion of third line procedures that are URS
B65: Events | C65: 6 | D65: 1 | E65: NR | F65: NR | G65: NR | H65: NR | I65: NR | J65: NR | K65: NR | L65: NR | M65: NR | N65: NR | O65: NR | P65: NR
B66: Probability | C66: =C65/C50 -> 1 | D66: =D65/D50 -> 1 | Y66: =D66 -> 1 | AA66: =C66 -> 1
A68: STUDIES USED IN EACH SCENARIO (for retreatment and ancillary outcomes) | B68: Scenario 1 | C68: y | E68: y | G68: y | I68: y | K68: y | M68: y | O68: y
B69: Scenario 2 | C69: n | E69: y | G69: y | I69: y | K69: n | M69: n | O69: n
B70: Scenario 3 | C70: y | E70: n | G70: n | I70: n | K70: n | M70: n | O70: n
A72: POOLED RETREATMENT AND ANCILLARY PROCEDURES | R72: Total participants | S72: =SUM(D12,F12,H12,J12,L12,N12) -> 554 | V72: =V12 -> 352
B73: Events | C73: =C19+C22 -> 37 | D73: 9 | E73: 12 | F73: 0 | G73: 9 | H73: 5 | I73: 24 | J73: 11 | K73: 34 | L73: 7 | M73: 8 | N73: =N19+N22 -> 3 | O73: NR | P73: NR | S73: =SUM(D73,F73,H73,J73,L73,N73) -> 35 | V73: =SUM(F73,H73,J73) -> 16
B74: Probability | C74: =C73/C12 -> 0.5362318841 | D74: 0.1034482759 | E74: 0.2068965517 | F74: 0 | G74: 0.2647058824 | H74: 0.1612903226 | I74: 0.09338521401 | J74: 0.04089219331 | K74: 0.641509434 | L74: 0.1428571429 | M74: 0.115942029 | N74: 0.04545454545 | S74: =S73/S72 -> 0.06317689531 | T74: 3.64 | U74: =S74*T74 -> 0.2299638989 | V74: =V73/V72 -> 0.04545454545 | W74: 2.72 | X74: =V74*W74 -> 0.1236363636
A75: POOLED READMISSION AND MAJOR ADVERSE EVENTS | R75: Total participants | S75: =SUM(D12,J12,P13) -> 388
B76: Events | C76: 0 | D76: 9 | E76: NR | F76: NR | G76: NR | H76: NR | I76: 0 | J76: 3 | K76: NR | L76: NR | M76: NR | N76: NR | O76: 2 | P76: 4 | S76: =SUM(D76,J76,P76) -> 16
B77: Probability | C77: =C76/C12 -> 0 | D77: =D76/D12 -> 0.1034482759 | I77: =I76/I12 -> 0 | J77: =J76/J12 -> 0.01115241636 | O77: =O76/O13 -> 0.0625 | P77: =P76/P13 -> 0.125 | S77: =S76/S75 -> 0.0412371134 | T77: 0.19 | U77: =S77*T77 -> 0.007835051546
A78: POOLED MINOR AND MAJOR ADVERSE EVENTS | R78: Total participants | S78: =SUM(D12,F27,J12,L12,P13) -> 537
B79: Events | C79: =C28+C31 -> 1 | D79: =D28+D31 -> 9 | E79: =E28 -> 0 | F79: =F28 -> 6 | G79: NR | H79: NR | I79: =I28+I31 -> 6 | J79: =J28+J31 -> 7 | K79: =K28 -> 0 | L79: =L28 -> 1 | M79: NR | N79: NR | O79: =O28 -> 0 | P79: =P28 -> 1 | S79: =SUM(D79,F79,J79,L79,P79) -> 24
B80: Probability | S80: =S79/S78 -> 0.04469273743 | T80: 0.36 | U80: =S80*T80 -> 0.01608938547
A83: LIVE DATA
A86: Summary (contain vlookup formulas):
C87: SCENARIO 1 | F87: SCENARIO 2 | I87: SCENARIO 3
C89: URS | D89: SWL | F89: URS | G89: SWL | O89: URS | P89: SWL
A90: Retreatment | C90: =IF('Scenario 1'!$H$47=3,VLOOKUP(SA3_switch,Inputs!$J$147:$P$155,5,FALSE),Inputs!$S$20) -> 0.02166064982 | D90: =IF('Scenario 1'!$H$47=2,VLOOKUP(SA1_switch,Inputs!$B$125:$D$135,2,FALSE),IF('Scenario 1'!$H$47=3,VLOOKUP(SA3_switch,Inputs!$J$148:$P$155,2,FALSE),Inputs!$U$20)) -> 0.1085198556 | F90: =IF('Scenario 2'!$F$119=3,VLOOKUP(SA10_switch,Inputs!$AB$148:$AH$155,5,FALSE),Inputs!$V$20) -> 0.01420454545 | G90: =IF('Scenario 2'!$F$119=2,VLOOKUP(SA8_switch,Inputs!$T$125:$W$135,3,FALSE),IF('Scenario 2'!$F$119=3,VLOOKUP(SA10_switch,Inputs!$AB$148:$AH$155,2,FALSE),Inputs!$X$20)) -> 0.05823863636 | I90: first line | J90: primary treatment success | O90: =Y36 -> 0.908045977 | P90: =IF('Scenario 3'!$R$80=2,VLOOKUP(SA13_switch,$AM$125:$AN$135,2,FALSE),AA36) -> 0.5507246377
A91: Ancillary procedures | B91: is a URS | D91: =IF('Scenario 1'!$H$47=2,VLOOKUP(SA1_switch,Inputs!$B$125:$D$135,3,FALSE),IF('Scenario 1'!$H$47=3,VLOOKUP(SA3_switch,Inputs!$J$148:$P$155,3,FALSE),Inputs!$U$23)) -> 0.09880866426 | G91: =IF('Scenario 2'!$F$119=2,VLOOKUP(SA8_switch,Inputs!$T$125:$W$135,4,FALSE),IF('Scenario 2'!$F$119=3,VLOOKUP(SA10_switch,Inputs!$AB$148:$AH$155,3,FALSE),Inputs!$X$23)) -> 0.07625 | J91: primary treatemnt failure | O91: =1-O90 -> 0.09195402299 | P91: =1-P90 -> 0.4492753623
B92: is a PCNL | C92: =IF('Scenario 1'!$H$47=3,VLOOKUP(SA3_switch,Inputs!$J$148:$P$155,7,FALSE),Inputs!$S$23) -> 0.04151624549 | D92: =IF('Scenario 1'!$H$47=3,VLOOKUP(SA3_switch,Inputs!$J$148:$P$155,4,FALSE),0) -> 0 | F92: =IF('Scenario 2'!$F$119=3,VLOOKUP(SA10_switch,Inputs!$AB$148:$AH$155,7,FALSE),Inputs!$V$23) -> 0.03125 | G92: =IF('Scenario 2'!$F$119=3,VLOOKUP(SA10_switch,Inputs!$AB$148:$AH$155,4,FALSE),0) -> 0 | I92: second line | J92: probability of having a retreatment | O92: =Y39 -> 0 | P92: =AA39 -> 0.2580645161
B93: is an SWL | C93: =IF('Scenario 1'!$H$47=3,VLOOKUP(SA3_switch,Inputs!$J$148:$P$155,6,FALSE),0) -> 0 | F93: =IF('Scenario 2'!$F$119=3,VLOOKUP(SA10_switch,Inputs!$AB$148:$AH$155,6,FALSE),0) -> 0 | J93: probability of retreatment success | O93: =Y42 -> 0 | P93: =AA42 -> 0.625
J94: probability of retreatment failure | O94: =1-URS_2ndline_retreat_success -> 1 | P94: =1-SWL_2ndline_retreat_success -> 0.375
F95: =$V$15+SUM(F90:F93) -> 0.9772727273 | G95: =$X$15+SUM(G90:G93) -> 0.9544886364 | H95: initial success prob + retreatment prob + ancillary probability | J95: probability of having an ancillary procedure | O95: =Y45 -> 1 | P95: =AA45 -> 0.7419354839
F96: =1-F95 -> 0.02272727273 | G96: =1-G95 -> 0.04551136364 | H96: passed stone without procedures (SWL value used in SA8) | J96: probability of ancillary procedure success | O96: =Y48 -> 0.875 | P96: =AA48 -> 0.8695652174
J97: probability of ancillary procedure failure | O97: =1-URS_2ndline_ancillary_success -> 0.125 | P97: =1-SWL_2ndline_ancillary_success -> 0.1304347826
I98: third line | J98: success of third line treatment | O98: =Y54 -> 0 | P98: =AA54 -> 0.1666666667
A99: readmissions | C99: =IF('Scenario 1'!H47=4,0,IF('Scenario 1'!H47=5,0,S26)) -> 0.125 | D99: =IF('Scenario 1'!H47=4,0,IF('Scenario 1'!H47=5,0,U26)) -> 0.0625 | F99: As in scenario 1 | O99: As in scenario 1
A100: minor adverse events | C100: =IF('Scenario 1'!H47=5,0,S29) -> 0.02234636872 | D100: =IF('Scenario 1'!H47=5,0,U29) -> 0.01497206704
A101: major adverse events | C101: =IF('Scenario 1'!H47=4,Inputs!S77,IF('Scenario 1'!H47=5,S80,S32)) -> 0.03370786517 | D101: =IF('Scenario 1'!H47=4,Inputs!U77,IF('Scenario 1'!H47=5,U80,U32)) -> 0.005056179775
A104: Resource use assumptions:
C105: URS | D105: SWL | F105: URS | G105: SWL | O105: URS | P105: SWL
A106: Number of initial sessions of SWL | D106: 1 | F106: As in scenario 1 | O106: As in scenario 1
A107: Number of repeat sessions of SWL | D107: 1
A108: Proportion requiring stent insertion | C108: 0 | D108: 0.01
A109: Proportion requiring stent removal | C109: =IF(E109=1,VLOOKUP(SA4_switch,Inputs!$B$161:$C$167,2,FALSE),IF(E109=2,VLOOKUP(SA11_switch,Inputs!$B$161:$C$167,2,FALSE),VLOOKUP(SA17_switch,Inputs!$B$161:$C$167,2,FALSE))) -> 0.7 | D109: =prop_requiring_stent_insertion_SWL -> 0.01 | E109: 3
A110: Proportion requiring confirmation of stone passing | C110: 1 | D110: 1
A111: Proportion requiring ultrasound to confirm stone passing | C111: 0.1 | D111: 0.1
J112: Proportion of second line ancillaries that are PCNL | O112: =Y57 -> 0.25 | P112: =AA57 -> 0.1304347826
J113: Proportion of second line ancillaries that are URS | O113: =Y60 -> 0 | P113: =AA60 -> 0.8695652174
J114: Proportion of second line ancillaries that are SWL | O114: =Y63 -> 0.75 | P114: =AA63 -> 0
J115: Proportion of third line procedures that are URS | O115: =Y66 -> 1 | P115: =AA66 -> 1
A118: SA inputs
A120: SCENARIO 1 | S120: SCENARIO 2 | AK120: SCENARIO 3
A122: SA1. Varying SWL retreatment/ancillary rates | S122: SA8. Varying initial effectiveness of SWL | AK122: SA13. Varying the effectiveness of the primary SWL
C124: probability of needing retreatment | D124: probability of needing ancillary procedure | E124: test effectiveness SWL | U124: initial effectiveness | V124: probability of needing retreatment | W124: probability of needing ancillary procedure | X124: no further treatment | Y124: effectiveness difference | Z124: test | AN124: initial effectiveness
A125: base case values | B125: 0 | C125: =Inputs!U20 -> 0.1085198556 | D125: =Inputs!U23 -> 0.09880866426 | E125: =1-SUM(C125:D125) -> 0.7926714801 | S125: base case values | T125: 0 | U125: =Inputs!$X$15 -> 0.82 | V125: =Inputs!$X$20 -> 0.05823863636 | W125: =Inputs!$X$23 -> 0.07625 | X125: =Inputs!$G$96 -> 0.04551136364 | Y125: =$V$15-U125 -> 0.1118181818 | Z125: =SUM(Inputs!U125:X125) -> 1 | AK125: same as URS | AM125: 0 | AN125: =Y36 -> 0.908045977
B126: 1 | C126: =C125+(($C$135-$C$125)/10) -> 0.129073059 | D126: =D125+(($D$135-$D$125)/10) -> 0.1175226089 | E126: =1-SUM(C126:D126) -> 0.7534043321 | T126: 1 | U126: =U125-(($U$125-$U$135)/10) -> 0.778 | V126: =V125+(($V$135-$V$125)/10) -> 0.07642621558 | W126: =W125+(($W$135-$W$125)/10) -> 0.1000624208 | X126: =Inputs!$G$96 -> 0.04551136364 | Y126: 0.1538181818 | Z126: =SUM(Inputs!U126:X126) -> 1 | AM126: =AM125+1 -> 1 | AN126: =AN125-(($AN$125-$AN$130)/5) -> 0.8365817091
B127: 2 | C127: 0.1496262623 | D127: 0.1362365536 | E127: 0.7141371841 | T127: 2 | U127: 0.736 | V127: 0.09461379479 | W127: 0.1238748416 | X127: =Inputs!$G$96 -> 0.04551136364 | Y127: 0.1958181818 | Z127: =SUM(Inputs!U127:X127) -> 1 | AM127: 2 | AN127: =AN126-(($AN$125-$AN$130)/5) -> 0.7651174413
B128: 3 | C128: 0.1701794657 | D128: 0.1549504982 | E128: 0.6748700361 | T128: 3 | U128: 0.694 | V128: 0.112801374 | W128: 0.1476872624 | X128: =Inputs!$G$96 -> 0.04551136364 | Y128: 0.2378181818 | Z128: =SUM(Inputs!U128:X128) -> 1 | AM128: 3 | AN128: 0.6936531734
B129: 4 | C129: 0.1907326691 | D129: 0.1736644429 | E129: 0.6356028881 | T129: 4 | U129: 0.652 | V129: 0.1309889532 | W129: 0.1714996831 | X129: =Inputs!$G$96 -> 0.04551136364 | Y129: 0.2798181818 | Z129: =SUM(Inputs!U129:X129) -> 1 | AM129: 4 | AN129: =AN128-(($AN$125-$AN$130)/5) -> 0.6221889055
B130: 5 | C130: 0.2112858724 | D130: 0.1923783875 | E130: 0.5963357401 | T130: 5 | U130: 0.61 | V130: 0.1491765324 | W130: 0.1953121039 | X130: =Inputs!$G$96 -> 0.04551136364 | Y130: 0.3218181818 | Z130: =SUM(Inputs!U130:X130) -> 1 | AK130: base case | AM130: 5 | AN130: =AA36 -> 0.5507246377
B131: 6 | C131: 0.2318390758 | D131: 0.2110923322 | E131: 0.5570685921 | T131: 6 | U131: 0.568 | V131: 0.1673641116 | W131: 0.2191245247 | X131: =Inputs!$G$96 -> 0.04551136364 | Y131: 0.3638181818 | Z131: =SUM(Inputs!U131:X131) -> 1 | AM131: 6 | AN131: =AN130-(($AN$130-$AN$135)/5) -> 0.5205797101
B132: 7 | C132: 0.2523922792 | D132: 0.2298062768 | E132: 0.517801444 | T132: 7 | U132: 0.526 | V132: 0.1855516909 | W132: 0.2429369455 | X132: =Inputs!$G$96 -> 0.04551136364 | Y132: 0.4058181818 | Z132: =SUM(Inputs!U132:X132) -> 1 | AM132: 7 | AN132: =AN131-(($AN$130-$AN$135)/5) -> 0.4904347826
B133: 8 | C133: 0.2729454825 | D133: 0.2485202214 | E133: 0.478534296 | T133: 8 | U133: 0.484 | V133: 0.2037392701 | W133: 0.2667493663 | X133: =Inputs!$G$96 -> 0.04551136364 | Y133: 0.4478181818 | Z133: =SUM(Inputs!U133:X133) -> 1 | AM133: 8 | AN133: 0.4602898551
B134: 9 | C134: 0.2934986859 | D134: 0.2672341661 | E134: 0.439267148 | T134: 9 | U134: 0.442 | V134: =V133+(($V$135-$V$125)/10) -> 0.2219268493 | W134: =W133+(($W$135-$W$125)/10) -> 0.2905617871 | X134: =Inputs!$G$96 -> 0.04551136364 | Y134: 0.4898181818 | Z134: =SUM(Inputs!U134:X134) -> 1 | AM134: =AM133+1 -> 9 | AN134: 0.4301449275
A135: uk practice values | B135: 10 | C135: =D135*(C125/D125) -> 0.3140518893 | D135: 0.2859481107 | E135: 0.4 | F135: equates to effectiveness as low as 40% (100% - 40% retreatment - 20% ancillary) | S135: uk practice | T135: 10 | U135: 0.4 | V135: =W135*(V125/W125) -> 0.2401144285 | W135: 0.3143742079 | X135: =Inputs!$G$96 -> 0.04551136364 | Y135: 0.5318181818 | Z135: =SUM(U135:X135) -> 1 | AA135: Testing effectiveness as low as 40% | AK135: low effectiveness | AM135: 10 | AN135: 0.4 | AP135: Testing effectiveness as low as 40%
A138: SA3. Pooling retreatment and ancillary procedures - inputs | S138: SA10. Pooling retreatment and ancillary procedures
A140: ratio SWL retreatmetn vs ancillaries | D140: =U20/U23 -> 1.098282791 | S140: ratio SWL retreatment vs ancillaries | V140: =X20/X23 -> 0.7637853949
A141: ratio URS retreatment versus ancillaries | D141: =S20/S23 -> 0.5217391304 | S141: ratio URS retreatment versus ancillaries | V141: =V20/V23 -> 0.4545454545
A143: Proportional divide between retreatments and ancillaries: | K143: Proportion associated with each type of secondary procedure: | S143: Proportional divide between retreatments and ancillaries: | AC143: Proportion associated with each type of secondary procedure:
B145: Interventions | K145: Interventions | T145: Interventions | AC145: Interventions
B146: SWL | E146: URS | K146: SWL | N146: URS | T146: SWL | W146: URS | AC146: SWL | AF146: URS
A147: Secondary procedure | B147: SWL (retreat) | C147: URS (anc) | D147: PCNL (anc) | E147: URS (retreat) | F147: SWL (anc) | G147: PCNL (anc) | H147: checking sum to 1 | K147: SWL (retreat) | L147: URS (anc) | M147: PCNL (anc) | N147: URS (retreat) | O147: SWL (anc) | P147: PCNL (anc) | S147: Procedure | T147: SWL (retreat) | U147: URS (anc) | V147: PCNL (anc) | W147: URS (retreat) | X147: SWL (anc) | Y147: PCNL (anc) | Z147: checking sum to 1 | AC147: SWL (retreat) | AD147: URS (anc) | AE147: PCNL (anc) | AF147: URS (retreat) | AG147: SWL (anc) | AH147: PCNL (anc)
A148: base case proportions | B148: =U20/(U20+U23) -> 0.5234198154 | C148: =B148/D140 -> 0.4765801846 | E148: =S20/(S20+S23) -> 0.3428571429 | G148: =E148/D141 -> 0.6571428571 | H148: =SUM(B148:D148) -> 1 | I148: =SUM(E148:G148) -> 1 | J148: 0 | K148: =Inputs!B148*Inputs!$U$74 -> 0.1203676615 | L148: =Inputs!C148*Inputs!$U$74 -> 0.1095962374 | M148: =Inputs!D148*Inputs!$U$74 -> 0 | N148: =Inputs!E148*Inputs!$S$74 -> 0.02166064982 | O148: =Inputs!F148*Inputs!$S$74 -> 0 | P148: =Inputs!G148*Inputs!$S$74 -> 0.04151624549 | S148: base case proportions | T148: =X20/(X20+X23) -> 0.4330376003 | U148: =T148/V140 -> 0.5669623997 | W148: =V20/(V20+V23) -> 0.3125 | Y148: =W148/V141 -> 0.6875 | Z148: =SUM(T148:V148) -> 1 | AA148: =SUM(W148:Y148) -> 1 | AB148: 0 | AC148: =Inputs!T148*Inputs!$X$74 -> 0.05353919422 | AD148: =Inputs!U148*Inputs!$X$74 -> 0.07009716941 | AE148: =Inputs!V148*Inputs!$X$74 -> 0 | AF148: =Inputs!W148*Inputs!$V$74 -> 0.01420454545 | AG148: =Inputs!X148*Inputs!$V$74 -> 0 | AH148: =Inputs!Y148*Inputs!$V$74 -> 0.03125
A149: assuming different ancillary | B149: =B148 -> 0.5234198154 | D149: =C148 -> 0.4765801846 | E149: =E148 -> 0.3428571429 | F149: =G148 -> 0.6571428571 | H149: =SUM(B149:D149) -> 1 | I149: =SUM(E149:G149) -> 1 | J149: 1 | K149: =Inputs!B149*Inputs!$U$74 -> 0.1203676615 | L149: =Inputs!C149*Inputs!$U$74 -> 0 | M149: =Inputs!D149*Inputs!$U$74 -> 0.1095962374 | N149: =Inputs!E149*Inputs!$S$74 -> 0.02166064982 | O149: =Inputs!F149*Inputs!$S$74 -> 0.04151624549 | P149: =Inputs!G149*Inputs!$S$74 -> 0 | S149: assuming different ancillary | T149: =T148 -> 0.4330376003 | V149: =U148 -> 0.5669623997 | W149: =W148 -> 0.3125 | X149: =Y148 -> 0.6875 | Z149: =SUM(T149:V149) -> 1 | AA149: =SUM(W149:Y149) -> 1 | AB149: 1 | AC149: =Inputs!T149*Inputs!$X$74 -> 0.05353919422 | AD149: =Inputs!U149*Inputs!$X$74 -> 0 | AE149: =Inputs!V149*Inputs!$X$74 -> 0.07009716941 | AF149: =Inputs!W149*Inputs!$V$74 -> 0.01420454545 | AG149: =Inputs!X149*Inputs!$V$74 -> 0.03125 | AH149: =Inputs!Y149*Inputs!$V$74 -> 0
A150: assuming different ancillaries | B150: =B148 -> 0.5234198154 | C150: =D149/2 -> 0.2382900923 | D150: =D149/2 -> 0.2382900923 | E150: =E148 -> 0.3428571429 | F150: =F149/2 -> 0.3285714286 | G150: =F149/2 -> 0.3285714286 | H150: 1 | I150: 1 | J150: 2 | K150: =Inputs!B150*Inputs!$U$74 -> 0.1203676615 | L150: =Inputs!C150*Inputs!$U$74 -> 0.0547981187 | M150: =Inputs!D150*Inputs!$U$74 -> 0.0547981187 | N150: =Inputs!E150*Inputs!$S$74 -> 0.02166064982 | O150: =Inputs!F150*Inputs!$S$74 -> 0.02075812274 | P150: =Inputs!G150*Inputs!$S$74 -> 0.02075812274 | S150: assuming different ancillaries | T150: =T148 -> 0.4330376003 | U150: =V149/2 -> 0.2834811998 | V150: =V149/2 -> 0.2834811998 | W150: =W148 -> 0.3125 | X150: =X149/2 -> 0.34375 | Y150: =X149/2 -> 0.34375 | Z150: 1 | AA150: 1 | AB150: 2 | AC150: =Inputs!T150*Inputs!$X$74 -> 0.05353919422 | AD150: =Inputs!U150*Inputs!$X$74 -> 0.03504858471 | AE150: =Inputs!V150*Inputs!$X$74 -> 0.03504858471 | AF150: =Inputs!W150*Inputs!$V$74 -> 0.01420454545 | AG150: =Inputs!X150*Inputs!$V$74 -> 0.015625 | AH150: =Inputs!Y150*Inputs!$V$74 -> 0.015625
A151: increasing proportion that have URS as secondary treatment in increments until 100% | B151: =1-C151 -> 0.4187358523 | C151: =$C$148+($B$148/5)*1 -> 0.5812641477 | E151: =$E$150+($G$148/5)*1 -> 0.4742857143 | G151: =1-E151 -> 0.5257142857 | H151: 1 | I151: 1 | J151: 3 | K151: =Inputs!B151*Inputs!$U$74 -> 0.09629412922 | L151: =Inputs!C151*Inputs!$U$74 -> 0.1336697697 | M151: =Inputs!D151*Inputs!$U$74 -> 0 | N151: =Inputs!E151*Inputs!$S$74 -> 0.02996389892 | O151: =Inputs!F151*Inputs!$S$74 -> 0 | P151: =Inputs!G151*Inputs!$S$74 -> 0.03321299639 | S151: increasing proportion that have URS as secondary treatment in increments until 100% | T151: =1-U151 -> 0.4187358523 | U151: =$C$148+($B$148/5)*1 -> 0.5812641477 | W151: =$E$150+($G$148/5)*1 -> 0.4742857143 | Y151: =1-W151 -> 0.5257142857 | Z151: 1 | AA151: 1 | AB151: 3 | AC151: =Inputs!T151*Inputs!$X$74 -> 0.05177097811 | AD151: =Inputs!U151*Inputs!$X$74 -> 0.07186538553 | AE151: =Inputs!V151*Inputs!$X$74 -> 0 | AF151: =Inputs!W151*Inputs!$V$74 -> 0.02155844156 | AG151: =Inputs!X151*Inputs!$V$74 -> 0 | AH151: =Inputs!Y151*Inputs!$V$74 -> 0.0238961039
B152: =1-C152 -> 0.3140518893 | C152: =$C$148+($B$148/5)*2 -> 0.6859481107 | E152: =$E$150+($G$148/5)*2 -> 0.6057142857 | G152: =1-E152 -> 0.3942857143 | H152: 1 | I152: 1 | J152: 4 | K152: =Inputs!B152*Inputs!$U$74 -> 0.07222059692 | L152: =Inputs!C152*Inputs!$U$74 -> 0.157743302 | M152: =Inputs!D152*Inputs!$U$74 -> 0 | N152: =Inputs!E152*Inputs!$S$74 -> 0.03826714801 | O152: =Inputs!F152*Inputs!$S$74 -> 0 | P152: =Inputs!G152*Inputs!$S$74 -> 0.02490974729 | T152: =1-U152 -> 0.3140518893 | U152: =$C$148+($B$148/5)*2 -> 0.6859481107 | W152: =$E$150+($G$148/5)*2 -> 0.6057142857 | Y152: =1-W152 -> 0.3942857143 | Z152: 1 | AA152: 1 | AB152: 4 | AC152: =Inputs!T152*Inputs!$X$74 -> 0.03882823358 | AD152: =Inputs!U152*Inputs!$X$74 -> 0.08480813006 | AE152: =Inputs!V152*Inputs!$X$74 -> 0 | AF152: =Inputs!W152*Inputs!$V$74 -> 0.02753246753 | AG152: =Inputs!X152*Inputs!$V$74 -> 0 | AH152: =Inputs!Y152*Inputs!$V$74 -> 0.01792207792
B153: 0.2093679262 | C153: =$C$148+($B$148/5)*3 -> 0.7906320738 | E153: =$E$150+($G$148/5)*3 -> 0.7371428571 | G153: 0.2628571429 | H153: 1 | I153: 1 | J153: 5 | K153: =Inputs!B153*Inputs!$U$74 -> 0.04814706461 | L153: =Inputs!C153*Inputs!$U$74 -> 0.1818168343 | M153: =Inputs!D153*Inputs!$U$74 -> 0 | N153: =Inputs!E153*Inputs!$S$74 -> 0.04657039711 | O153: =Inputs!F153*Inputs!$S$74 -> 0 | P153: =Inputs!G153*Inputs!$S$74 -> 0.01660649819 | T153: 0.2093679262 | U153: =$C$148+($B$148/5)*3 -> 0.7906320738 | W153: =$E$150+($G$148/5)*3 -> 0.7371428571 | Y153: 0.2628571429 | Z153: 1 | AA153: 1 | AB153: 5 | AC153: =Inputs!T153*Inputs!$X$74 -> 0.02588548905 | AD153: =Inputs!U153*Inputs!$X$74 -> 0.09775087458 | AE153: =Inputs!V153*Inputs!$X$74 -> 0 | AF153: =Inputs!W153*Inputs!$V$74 -> 0.03350649351 | AG153: =Inputs!X153*Inputs!$V$74 -> 0 | AH153: =Inputs!Y153*Inputs!$V$74 -> 0.01194805195
B154: 0.1046839631 | C154: =$C$148+($B$148/5)*4 -> 0.8953160369 | E154: =$E$150+($G$148/5)*4 -> 0.8685714286 | G154: 0.1314285714 | H154: 1 | I154: 1 | J154: 6 | K154: =Inputs!B154*Inputs!$U$74 -> 0.02407353231 | L154: =Inputs!C154*Inputs!$U$74 -> 0.2058903666 | M154: =Inputs!D154*Inputs!$U$74 -> 0 | N154: =Inputs!E154*Inputs!$S$74 -> 0.05487364621 | O154: =Inputs!F154*Inputs!$S$74 -> 0 | P154: =Inputs!G154*Inputs!$S$74 -> 0.008303249097 | T154: 0.1046839631 | U154: =$C$148+($B$148/5)*4 -> 0.8953160369 | W154: =$E$150+($G$148/5)*4 -> 0.8685714286 | Y154: 0.1314285714 | Z154: 1 | AA154: 1 | AB154: 6 | AC154: =Inputs!T154*Inputs!$X$74 -> 0.01294274453 | AD154: =Inputs!U154*Inputs!$X$74 -> 0.1106936191 | AE154: =Inputs!V154*Inputs!$X$74 -> 0 | AF154: =Inputs!W154*Inputs!$V$74 -> 0.03948051948 | AG154: =Inputs!X154*Inputs!$V$74 -> 0 | AH154: =Inputs!Y154*Inputs!$V$74 -> 0.005974025974
B155: 0 | C155: =$C$148+($B$148/5)*5 -> 1 | E155: =$E$150+($G$148/5)*5 -> 1 | G155: =1-E155 -> 0 | H155: 1 | I155: 1 | J155: 7 | K155: =Inputs!B155*Inputs!$U$74 -> 0 | L155: =Inputs!C155*Inputs!$U$74 -> 0.2299638989 | M155: =Inputs!D155*Inputs!$U$74 -> 0 | N155: =Inputs!E155*Inputs!$S$74 -> 0.06317689531 | O155: =Inputs!F155*Inputs!$S$74 -> 0 | P155: =Inputs!G155*Inputs!$S$74 -> 0 | T155: 0 | U155: =$C$148+($B$148/5)*5 -> 1 | W155: =$E$150+($G$148/5)*5 -> 1 | X155: 0 | Y155: =1-W155 -> 0 | Z155: 1 | AA155: 1 | AB155: 7 | AC155: =Inputs!T155*Inputs!$X$74 -> 0 | AD155: =Inputs!U155*Inputs!$X$74 -> 0.1236363636 | AE155: =Inputs!V155*Inputs!$X$74 -> 0 | AF155: =Inputs!W155*Inputs!$V$74 -> 0.04545454545 | AG155: =Inputs!X155*Inputs!$V$74 -> 0 | AH155: =Inputs!Y155*Inputs!$V$74 -> 0
A158: SA4 & SA11 & SA17. Varying proportion of URS that get stents | F158: (same values tested in all three scenarios)
C160: Proportion
A161: base case | B161: 0 | C161: 0.7
B162: 1 | C162: 0
B163: 2 | C163: 0.2
B164: 3 | C164: 0.4
B165: 4 | C165: 0.6
B166: 5 | C166: 0.8
B167: 6 | C167: 1
A170: COSTS
A172: Interventions
C173: National Schedule of Reference Costs - Year 2016-17 - NHS trusts and NHS foundation trusts
A174: SWL COST per session
C175: DAY CASE
C176: Currency Code | D176: Currency Description | E176: Number of FCE's | F176: National Average Unit Cost | G176: Lower Quartile Unit Cost | H176: Upper Quartile Unit Cost | I176: No. Data Submissions
C177: LB36Z | D177: Extracorporeal Lithotripsy | E177: 20064 | F177: 451.6226146 | G177: 221.24 | H177: 571.06 | I177: 114
A180: URS COST per procedure | C180: National average cost (including complications and excess bed days) - from elective | K180: ELECTIVE | U180: ELECTIVE EXCESS BED DAYS
C181: Currency Code | D181: Currency Description | E181: Activity | F181: WA Unit Cost (deterministic) | G181: WA Unit Cost (probabilistic) | H181: Average Length of Stay - Days | K181: Currency Code | L181: Currency Description | M181: Number of FCEs | N181: National Average Unit Cost | O181: Lower Quartile Unit Cost | P181: Upper Quartile Unit Cost | Q181: Number of Inlier Bed Days | R181: Average Length of Stay - Days | S181: No. Data Submissions | U181: Currency Code | V181: Currency Description | W181: Excess Bed days | X181: National Average Unit Cost | Y181: Lower Quartile Unit Cost | Z181: Upper Quartile Unit Cost | AA181: No. Data Submissions
C182: LB65C, LB65D and LB65E | D182: Major Endoscopic, Kidney or Ureter Procedures, 19 years and over, | E182: =SUM(M182:M184) -> 8560 | F182: =(SUMPRODUCT($M$182:$M$184,N182:N184)+(SUMPRODUCT($W$182:$W$184,X182:X184)))/E182 -> 2604.810402 | H182: =(SUMPRODUCT($M$182:$M$184,R182:R184)+SUM(W182:W184))/E182 -> 1.547546729 | K182: LB65C | L182: Major Endoscopic, Kidney or Ureter Procedures, 19 years and over, with CC Score 5+ | M182: 548 | N182: 3320.403668 | O182: 2562.645 | P182: 3765.75 | Q182: 1668 | R182: 3.04379562 | S182: 134 | U182: LB65C | V182: Major Endoscopic, Kidney or Ureter Procedures, 19 years and over, with CC Score 5+ | W182: 39 | X182: 437.6087179 | Y182: 244.38 | Z182: 653.48 | AA182: 7
K183: LB65D | L183: Major Endoscopic, Kidney or Ureter Procedures, 19 years and over, with CC Score 3-4 | M183: 1139 | N183: 2681.436989 | O183: 2244.11 | P183: 2940.5 | Q183: 1911 | R183: 1.677787533 | S183: 145 | U183: LB65D | V183: Major Endoscopic, Kidney or Ureter Procedures, 19 years and over, with CC Score 3-4 | W183: 257 | X183: 289.4485603 | Y183: 257.75 | Z183: 257.75 | AA183: 23
K184: LB65E | L184: Major Endoscopic, Kidney or Ureter Procedures, 19 years and over, with CC Score 0-2 | M184: 6873 | N184: 2500.314279 | O184: 2146.5 | P184: 2746.545312 | Q184: 8973 | R184: 1.305543431 | S184: 163 | U184: LB65E | V184: Major Endoscopic, Kidney or Ureter Procedures, 19 years and over, with CC Score 0-2 | W184: 399 | X184: 369.233183 | Y184: 270.895 | Z184: 428.98 | AA184: 62
C186: National average cost (weighted average of all complication categories) | K186: DAY CASE
C187: Currency Code | D187: Currency Description | E187: Activity | F187: WA Unit Cost (deterministic) | G187: WA Unit Cost (probabilistic) | H187: Average Length of Stay - Days | K187: Currency Code | L187: Currency Description | M187: Number of FCE's | N187: National Average Unit Cost | O187: Lower Quartile Unit Cost | P187: Upper Quartile Unit Cost | Q187: No. Data Submissions
C188: LB65C, LB65D and LB65E | D188: Major Endoscopic, Kidney or Ureter Procedures, 19 years and over, | E188: 5785 | F188: 1739.200057 | K188: LB65C | L188: Major Endoscopic, Kidney or Ureter Procedures, 19 years and over, with CC Score 5+ | M188: 112 | N188: 1683.285536 | O188: 1266.91 | P188: 2025.6625 | Q188: 55
K189: LB65D | L189: Major Endoscopic, Kidney or Ureter Procedures, 19 years and over, with CC Score 3-4 | M189: 438 | N189: 1760.755342 | O189: 1431.72 | P189: 1924.22 | Q189: 110
K190: LB65E | L190: Major Endoscopic, Kidney or Ureter Procedures, 19 years and over, with CC Score 0-2 | M190: 5235 | N190: 1738.592839 | O190: 1456.1 | P190: 1958.92 | Q190: 162
C192: % elective | D192: % day case
C193: 0.5 | D193: 0.5 | F193: =(C193*F182)+(D193*F188) -> 2172.005229 | K193: assume 50% elective cost and 50% day case cost
A196: PCNL cost | C196: National average cost (including complications and excess bed days) | K196: ELECTIVE | U196: ELECTIVE EXCESS BED DAYS
C197: Currency Code | D197: Currency Description | E197: Activity | F197: WA Unit Cost (deterministic) | G197: WA Unit Cost (probabilistic) | H197: Average Length of Stay - Days | K197: Currency Code | L197: Currency Description | M197: Number of FCEs | N197: National Average Unit Cost | O197: Lower Quartile Unit Cost | P197: Upper Quartile Unit Cost | Q197: Number of Inlier Bed Days | R197: Average Length of Stay - Days | S197: No. Data Submissions | U197: Currency Code | V197: Currency Description | W197: Excess Bed days | X197: National Average Unit Cost | Y197: Lower Quartile Unit Cost | Z197: Upper Quartile Unit Cost | AA197: No. Data Submissions
C198: LB75A, LB75B and 0 | D198: percutaneous nephrolithotomy | E198: =SUM(M198:M199) -> 1317 | F198: =(SUMPRODUCT($M$198:$M$199,N198:N199)+(SUMPRODUCT($W$198:$W$199,X198:X199)))/E198 -> 5195.116295 | H198: =(SUMPRODUCT($M$198:$M$199,R198:R199)+SUM(W198:W199))/E198 -> 3.209567198 | K198: LB75A | L198: Percutaneous Nephrolithotomy with CC Score 2+ | M198: 448 | N198: 5516.328281 | O198: 4224.75 | P198: 6055.06 | Q198: 1706 | R198: 3.808035714 | S198: 90 | U198: LB75A | V198: Percutaneous Nephrolithotomy with CC Score 2+ | W198: 114 | X198: 348.0165789 | Y198: 209.55 | Z198: 321.24 | AA198: 16
K199: LB75B | L199: Percutaneous Nephrolithotomy with CC Score 0-1 | M199: 869 | N199: 4981.775029 | O199: 3842 | P199: 5376.49 | Q199: 2398 | R199: 2.759493671 | S199: 103 | U199: LB75B | V199: Percutaneous Nephrolithotomy with CC Score 0-1 | W199: 9 | X199: 201.8555556 | Y199: 98.72 | Z199: 271.7 | AA199: 5
A202: Other resource use
A204: Stent insertion cost | C204: DAY CASE
C205: Currency Code | D205: Currency Description | E205: Number of FCE's | F205: National Average Unit Cost | G205: Lower Quartile Unit Cost | H205: Upper Quartile Unit Cost | I205: No. Data Submissions
C206: LB09D | D206: Intermediate Endoscopic Ureter Procedures, 19 years and over | E206: 14015 | F206: 1017.529134 | G206: 668.05 | H206: 1239.485044 | I206: 207 | K206: this has been mapped from OPCS code M292
A208: Stent removal cost | F208: 1017.529134 | K208: same HRG as above, mapped from OPCS code M293
A211: Follow up - consultant led | C211: Currency Code | D211: Currency Description | E211: Service Code | F211: Service Description | G211: No. of attendances | H211: National Average Unit Cost | I211: Lower Quartile Unit Cost | J211: Upper Quartile Unit Cost | K211: No. Data Submissions
C212: WF01A | D212: Non-Admitted Face-to-Face Attendance, Follow-up | E212: 101 | F212: Urology | G212: 1063865 | H212: 103.0481563 | I212: 80.3 | J212: 120.05 | K212: 142
A215: Imaging | C215: Department Code | D215: Department Description | E215: Currency Code | F215: Currency Description | G215: No. of examinations | H215: National Average Unit Cost | I215: Lower Quartile Unit Cost | J215: Upper Quartile Unit Cost | K215: No. Data Submissions | M215: An x-ray is bundled and therefore no cost applies so only the cost of ultrasound is included.
C216: IMAGOP | D216: Imaging: Outpatient | E216: RD40Z | F216: Ultrasound Scan with duration of less than 20 minutes, without Contrast | G216: 2122656 | H216: 51.77767372 | I216: 36.77692669 | J216: 59.83426761 | K216: 4800
A219: Adverse events/re-hospitalisation
A221: Minor AE's | C221: EMERGENCY MEDICINE SCHEDULE
C222: Service Code | D222: Service Description | E222: Currency Code | F222: Currency Description | G222: Attendances | H222: National Average Unit Cost | I222: Lower Quartile Unit Cost | J222: Upper Quartile Unit Cost | K222: No. Data Submissions
C223: T01NA | D223: Type 01 non admitted | E223: VB09Z | F223: Emergency Medicine, Category 1 Investigation with Category 1-2 Treatment | G223: 3484576 | H223: 119.0744318 | I223: 93.78 | J223: 139.24 | K223: 137
A225: Major AE's | C225: same as below
A228: Rehospitalisation | C228: EMERGENCY MEDICINE SCHEDULE
C229: Service Code | D229: Service Description | E229: Currency Code | F229: Currency Description | G229: Attendances | H229: National Average Unit Cost | I229: Lower Quartile Unit Cost | J229: Upper Quartile Unit Cost | K229: No. Data Submissions | M229: category 3 investigation e.g. ultrasound
C230: T01A | D230: Type 01 admitted | E230: VB03Z | F230: Emergency Medicine, Category 3 Investigation with Category 1-3 Treatment | G230: 368944 | H230: 307.0965393 | I230: 249.12 | J230: 358.38 | K230: 135 | M230: category 3 treatment e.g. urinary catheter, minor surgery
A233: QUALITY OF LIFE | B233: (only used in exploratory work in scenarios 2 and 3)
R234: Source
A236: UK general population utility from the health survey for England 2014 | G236: 0.874 | R236: EQ5D | S236: http://nesstar.ukdataservice.ac.uk/webview/index.jsp?v=2&mode=documentation&submode=abstract&study=http://nesstar.ukdataservice.ac.uk:80/obj/fStudy/7919&top=yes
A238: Utility with a stone | G238: =((0.677*383)+(383*0.674)+(384*0.701))/(383+383+384) -> 0.6840147826 | R238: EQ5D, calculated as a weighted average of the baseline utility of each arm of Pickard 2015 study on MET.

Sheet Scenario 1
A1: LIVE ANALYSIS | L1: NOTES
F3: % | G3: no. people | H3: cost
A4: 1000 | B4: URS | C4: primary intervention cost | F4: 1 | G4: =$A$4*F4 -> 1000 | H4: =G4*URS_cost -> 2172005.229
D5: removing stent | F5: =prop_requiring_stent_removal_URS -> 0.7 | G5: =$A$4*F5 -> 700 | H5: =G5*Stent_removal_cost -> 712270.3936
C6: retreatment | F6: =Scen1_retreatment_URS -> 0.02166064982 | G6: =$A$4*F6 -> 21.66064982 | H6: =G6*URS_cost -> 47047.04468
D7: removing stent | F7: =prop_requiring_stent_removal_URS -> 0.7 | G7: =G6*F7 -> 15.16245487 | H7: =G7*Stent_removal_cost -> 15428.23957
C8: ancillary procedures | F8: =SUM(Scen1_URS_ancillary_PCNL,Scen1_URS_ancillary_SWL) -> 0.04151624549 | G8: =$A$4*F8 -> 41.51624549 | H8: =(A4*Scen1_URS_ancillary_PCNL*PCNL_cost)+(A4*((Scen1_URS_ancillary_SWL*SWL_cost_per_session)+(Scen1_URS_ancillary_SWL*(prop_requiring_stent_insertion_SWL*stent_insertion_cost+prop_requiring_stent_insertion_SWL*Stent_removal_cost)))) -> 215681.7234
C9: Follow up (consult + imaging)
D10: primary intvn follow up | F10: =Inputs!C110 -> 1 | G10: =$A$4*F10 -> 1000 | H10: =G10*follow_up+(G10*Inputs!C111*Ultrasound_cost) -> 108225.9236
D11: retreatment follow up | F11: =F6*Inputs!C110 -> 0.02166064982 | G11: 21.66064982 | H11: =G11*follow_up+(G11*Inputs!C111*Ultrasound_cost) -> 2344.243833
D12: ancillary follow up | F12: =F8*Inputs!C110 -> 0.04151624549 | G12: 41.51624549 | H12: =G12*follow_up+(G12*Inputs!C111*Ultrasound_cost) -> 4493.134013
C13: readmission to hospital | F13: =readmin_URS -> 0.125 | G13: 125 | H13: =G13*Rehosp_cost -> 38387.06741
C14: Minor adverse events | F14: =minorAE_URS -> 0.02234636872 | G14: 22.34636872 | H14: =G14*minorAE_cost -> 2660.881157
C15: Major adverse events | F15: =majorAE_URS -> 0.03370786517 | G15: 33.70786517 | H15: =G15*majorAE_cost -> 10351.56874
H18: =SUM(H4:H15) -> 3328895.45 | I18: TOTAL COST | L18: assume that 100% of people would be stone free as including resource use from the review (we can make that assumption because we know most of the studies reported outcomes after the primary procedure, and so considering the retreatment they said would occur we could assume this would mean most people would end up stone free)
A20: 1000 | B20: SWL | C20: primary intervention cost | F20: 1 | G20: =$A$20*F20 -> 1000 | H20: =G20*SWL_cost_per_session*No_initial_sessions -> 451622.6146
D21: inserting + removing stent | F21: =prop_requiring_stent_insertion_SWL -> 0.01 | G21: =G20*F21 -> 10 | H21: =(G21*stent_insertion_cost)+(G21*Stent_removal_cost) -> 20350.58268
C22: retreatment | F22: =Scen1_retreatment_SWL -> 0.1085198556 | G22: =$A$20*F22 -> 108.5198556 | H22: =G22*No_repeat_sessions*SWL_cost_per_session -> 49010.02092 | M22: Results breakdown for report
D23: inserting + removing stent | F23: =prop_requiring_stent_insertion_SWL -> 0.01 | G23: =G22*F23 -> 1.085198556 | H23: =(G23*stent_insertion_cost)+(G23*Stent_removal_cost) -> 2208.442293 | M23: Parameter | N23: URS strategy cost (per 1000) | P23: SWL strategy cost (per 1000)
C24: ancillary procedures | F24: =SUM(Scen1_SWL_ancillary_URS,Scen1_SWL_ancillary_PCNL) -> 0.09880866426 | G24: =$A$20*F24 -> 98.80866426 | H24: =(A20*Scen1_SWL_ancillary_URS*URS_cost)+(A20*Scen1_SWL_ancillary_PCNL*PCNL_cost) -> 214612.9355 | M24: Primary intervention cost | N24: =H4+H5 -> 2884275.623 | P24: =H20+H21 -> 471973.1973
D25: removing stent (if URS) | F25: =prop_requiring_stent_removal_URS -> 0.7 | G25: =A20*Scen1_SWL_ancillary_URS*F25 -> 69.16606498 | H25: =G25*Stent_removal_cost -> 70378.48619 | N25: =H5 -> 712270.3936 | O25: = stent costs | P25: =H21 -> 20350.58268 | Q25: = stent costs)
C26: Follow up (consult + imaging) | M26: Retreatment | N26: =H6+H7 -> 62475.28426 | P26: =H22+H23 -> 51218.46322
D27: primary intvn follow up | F27: =Inputs!D110 -> 1 | G27: =$A$20*F27 -> 1000 | H27: =G27*follow_up+(G27*Inputs!D111*Ultrasound_cost) -> 108225.9236 | N27: =H7 -> 15428.23957 | O27: = stent costs | P27: =H23 -> 2208.442293 | Q27: = stent costs)
D28: retreatment follow up | F28: =F22*Inputs!D110 -> 0.1085198556 | G28: 108.5198556 | H28: =G28*follow_up+(G28*Inputs!D111*Ultrasound_cost) -> 11744.6616 | M28: Ancillary procedures | N28: =H8 -> 215681.7234 | P28: =H24+H25 -> 284991.4217
D29: ancillary follow up | F29: =F24*Inputs!D110 -> 0.09880866426 | G29: 98.80866426 | H29: =G29*follow_up+(G29*Inputs!D111*Ultrasound_cost) -> 10693.65895 | P29: =H25 -> 70378.48619 | Q29: = stent costs)
C30: readmission to hospital | F30: =readmin_SWL -> 0.0625 | G30: 62.5 | H30: =G30*Rehosp_cost -> 19193.53371 | M30: Follow up (consultation + imaging) | N30: =SUM(H10:H12) -> 115063.3015 | P30: =SUM(H27:H29) -> 130664.2442
C31: Minor adverse events | F31: =minorAE_SWL -> 0.01497206704 | G31: 14.97206704 | H31: =G31*minorAE_cost -> 1782.790375 | M31: Readmission | N31: =H13 -> 38387.06741 | P31: =H30 -> 19193.53371
C32: Major adverse events | F32: =majorAE_SWL -> 0.005056179775 | G32: 5.056179775 | H32: =G32*majorAE_cost -> 1552.735311 | M32: Minor adverse events | N32: =H14 -> 2660.881157 | P32: =H31 -> 1782.790375
M33: Major adverse events | N33: =H15 -> 10351.56874 | P33: =H32 -> 1552.735311
H34: =SUM(H20:H32) -> 961376.3858 | I34: TOTAL COST | M34: TOTAL | N34: =H18 -> 3328895.45 | P34: =H34 -> 961376.3858
A37: LIVE RESULTS
H39: Cost per patient
G40: URS | H40: =H18/1000 -> 3328.89545
G41: SWL | H41: =H34/1000 -> 961.3763858
C42: Analysis selected: | E42: =IF(H47=1,"base case",IF(H47=2,"SA1",IF(H47=3,"SA3",IF(H47=4,"SA6","SA7")))) -> base case | G42: incremental | H42: =H40-H41 -> 2367.519064
A44: SENSITIVITY ANALYSES
H47: 1
A51: SA1. Varying SWL retreatment/ancillary rates
B53: SA switch | C53: 0 | L53: SET RADIO BUTTONS TO SA1 AND FILL IN SA SWITCH WITH A VALUE TO TEST LIVE RESULTS MANUALLY (use numbers 0 to 10)
E55: probability of retreatment | F55: probability of ancillary procedure
B56: Corresponding input values being tested | E56: =VLOOKUP(SA1_switch,Inputs!$B$125:$D$135,2,FALSE) -> 0.1085198556 | F56: =VLOOKUP(SA1_switch,Inputs!$B$125:$D$135,3,FALSE) -> 0.09880866426 | L56: change value in SA switch (between 0 and 10) to see inputs that led to the results in the corresponding number row
C59: Total cost of SWL strategy per pt | D59: Incremental cost (URS - SWL) | L59: be careful if move cells then have to change the cell values in the macro
B60: 0 | C60: 961.3763858 | D60: =$H$40-C60 -> 2367.519064
B61: 1 | C61: 1029.302845 | D61: =$H$40-C61 -> 2299.592605
B62: 2 | C62: 1097.229303 | D62: =$H$40-C62 -> 2231.666146
B63: 3 | C63: 1165.155762 | D63: 2163.739687
B64: 4 | C64: 1233.082221 | D64: 2095.813228
B65: 5 | C65: 1301.00868 | D65: 2027.88677
B66: 6 | C66: 1368.935139 | D66: 1959.960311
B67: 7 | C67: 1436.861598 | D67: 1892.033852
B68: 8 | C68: 1504.788056 | D68: 1824.107393
B69: 9 | C69: 1572.714515 | D69: =$H$40-C69 -> 1756.180934
B70: 10 | C70: 1640.640974 | D70: =$H$40-C70 -> 1688.254475
A73: SA2. Varying cost of SWL
I74: incremental cost
A75: SA2.a | B75: If assume have two initial sessions? | I75: 1915.896449
A78: SA2.b | B78: threshold analysis: what is the cost of 1 session of SWL to make the comparators cost neutral? | I78: 2587 | L78: ONLY CALCULATED USING GOAL SEEK. IF MAKE CHANGES TO ANALYSIS THEN WILL NEED TO DO THIS AGAIN
A81: SA3. Pooling retreatment and ancillary procedures
B83: SA switch | C83: 0 | L83: SET RADIO BUTTONS TO SA3 AND FILL IN SA SWITCH WITH A VALUE TO TEST LIVE RESULTS MANUALLY (use numbers 0 to 7)
E85: Proportion associated with each type of secondary procedure:
E86: Interventions
E87: SWL | H87: URS
E88: SWL (retreat) | F88: URS (anc) | G88: PCNL (anc) | H88: URS (retreat) | I88: SWL (anc) | J88: PCNL (anc)
B89: Corresponding input values being tested | E89: =VLOOKUP(SA3_switch,Inputs!$J$148:$P$155,2,FALSE) -> 0.1203676615 | F89: =VLOOKUP(SA3_switch,Inputs!$J$148:$P$155,3,FALSE) -> 0.1095962374 | G89: =VLOOKUP(SA3_switch,Inputs!$J$148:$P$155,4,FALSE) -> 0 | H89: =VLOOKUP(SA3_switch,Inputs!$J$148:$P$155,5,FALSE) -> 0.02166064982 | I89: =VLOOKUP(SA3_switch,Inputs!$J$148:$P$155,6,FALSE) -> 0 | J89: =VLOOKUP(SA3_switch,Inputs!$J$148:$P$155,7,FALSE) -> 0.04151624549 | L89: change value in SA switch (between 0 and 7) to see inputs that led to the results in the corresponding number row
B92: Total cost | D92: Incremental cost
B93: URS | C93: SWL
A94: 0 | B94: 3328.89545 | C94: 1000.532302 | D94: =B94-C94 -> 2328.363148
A95: 1 | B95: 3132.808281 | C95: 1253.791744 | D95: 1879.016537
A96: 2 | B96: 3230.851865 | C96: 1127.162023 | D96: 2103.689842
A97: 3 | B97: 3309.707964 | C97: 1058.604942 | D97: 2251.103022
A98: 4 | B98: 3290.520478 | C98: 1116.677582 | D98: 2173.842896
A99: 5 | B99: 3271.332992 | C99: 1174.750223 | D99: 2096.58277
A100: 6 | B100: 3252.145507 | C100: 1232.822863 | D100: 2019.322644
A101: 7 | B101: 3232.958021 | C101: 1290.895504 | D101: 1942.062517
A104: SA4. Varying proportion of URS that get stents
B106: SA switch | C106: 0 | L106: SET RADIO BUTTONS TO BASE CASE AND FILL IN SA SWITCH WITH A VALUE TO TEST LIVE RESULTS MANUALLY (use numbers 0 to 6)
E108: Proportion having stent
B109: Corresponding input values being tested | E109: =VLOOKUP(SA4_switch,Inputs!$B$161:$C$167,2,FALSE) -> 0.7 | L109: change value in SA switch (between 0 and 6) to see inputs that led to the results in the corresponding number row
B112: total cost URS | C112: total cost SWL | D112: incremental cost
A113: 0 | B113: 3328.89545 | C113: 961.3763858 | D113: =B113-C113 -> 2367.519064
A114: 1 | B114: 2601.196816 | C114: 890.9978996 | D114: =B114-C114 -> 1710.198917
A115: 2 | B115: 2809.110712 | C115: 911.1060385 | D115: 1898.004673
A116: 3 | B116: 3017.024607 | C116: 931.2141774 | D116: 2085.810429
A117: 4 | B117: 3224.938502 | C117: 951.3223163 | D117: 2273.616186
A118: 5 | B118: 3432.852397 | C118: 971.4304552 | D118: 2461.421942
A119: 6 | B119: 3640.766292 | C119: 991.5385941 | D119: 2649.227698
A122: SA5. Omitting readmission from the analysis
D123: Cost per patient
C124: URS | D124: =(SUM(H4:H15)-H13)/1000 -> 3290.508382
C125: SWL | D125: =(SUM(H20:H32)-H30)/1000 -> 942.1828521
C126: incremental | D126: =D124-D125 -> 2348.32553 | L126: BASED ON CALCULATIONS OMMITTING THE READMISSION OUTCOME FROM THE LIVE RESULTS. DOES NOT USE A BUTTON.
A129: SA6. Pooled readmission and major adverse events
D130: Cost per patient
C131: URS | D131: 3292.820588
C132: SWL | D132: 943.036234
C133: incremental | D133: 2349.784354
A135: SA7. Pooled minor and major adverse events (readmissions also excluded)
D136: Cost per patient
C137: URS | D137: 3291.220917
C138: SWL | D138: 943.788321
C139: incremental | D139: 2347.432596

Sheet Scenario 2
A1: LIVE ANALYSIS | L1: NOTES
F3: % | G3: no. people | H3: cost
A4: 1000 | B4: URS | C4: primary intervention cost | F4: 1 | G4: =$A$4*F4 -> 1000 | H4: =G4*URS_cost -> 2172005.229
D5: removing stent | F5: =prop_requiring_stent_removal_URS -> 0.7 | G5: =$A$4*F5 -> 700 | H5: =G5*Stent_removal_cost -> 712270.3936
C6: retreatment | F6: =Scen2_retreatment_URS -> 0.01420454545 | G6: =$A$4*F6 -> 14.20454545 | H6: =G6*URS_cost -> 30852.34701
D7: removing stent | F7: =prop_requiring_stent_removal_URS -> 0.7 | G7: =G6*F7 -> 9.943181818 | H7: =G7*Stent_removal_cost -> 10117.47718
C8: ancillary procedures | F8: =SUM(Scen2_URS_ancillary_PCNL,Scen2_URS_ancillary_SWL) -> 0.03125 | G8: =$A$4*F8 -> 31.25 | H8: =(A4*Scen2_URS_ancillary_PCNL*PCNL_cost)+(A4*((Scen2_URS_ancillary_SWL*SWL_cost_per_session)+(Scen2_URS_ancillary_SWL*(prop_requiring_stent_insertion_SWL*stent_insertion_cost+prop_requiring_stent_insertion_SWL*Stent_removal_cost)))) -> 162347.3842
C9: Follow up (consult + imaging)
D10: primary intvn follow up | F10: =Inputs!C110 -> 1 | G10: =$A$4*F10 -> 1000 | H10: =G10*follow_up+(G10*Inputs!C111*Ultrasound_cost) -> 108225.9236
D11: retreatment follow up | F11: =F6*Inputs!C110 -> 0.01420454545 | G11: 14.20454545 | H11: =G11*follow_up+(G11*Inputs!C111*Ultrasound_cost) -> 1537.300051
D12: ancillary follow up | F12: =F8*Inputs!C110 -> 0.03125 | G12: 31.25 | H12: =G12*follow_up+(G12*Inputs!C111*Ultrasound_cost) -> 3382.060113
C13: readmission to hospital | F13: =readmin_URS -> 0.125 | G13: 125 | H13: =G13*Rehosp_cost -> 38387.06741
C14: Minor adverse events | F14: =minorAE_URS -> 0.02234636872 | G14: 22.34636872 | H14: =G14*minorAE_cost -> 2660.881157
C15: Major adverse events | F15: =majorAE_URS -> 0.03370786517 | G15: 33.70786517 | H15: =G15*majorAE_cost -> 10351.56874
H18: =SUM(H4:H15) -> 3252137.633 | I18: TOTAL COST
A20: 1000 | B20: SWL | C20: primary intervention cost | F20: 1 | G20: =$A$20*F20 -> 1000 | H20: =G20*SWL_cost_per_session*No_initial_sessions -> 451622.6146
D21: inserting + removing stent | F21: =prop_requiring_stent_insertion_SWL -> 0.01 | G21: =G20*F21 -> 10 | H21: =(G21*stent_insertion_cost)+(G21*Stent_removal_cost) -> 20350.58268
C22: retreatment | F22: =Scen2_retreatment_SWL -> 0.05823863636 | G22: =$A$20*F22 -> 58.23863636 | H22: =G22*No_repeat_sessions*SWL_cost_per_session -> 26301.88523 | M22: Results breakdown for report
D23: inserting + removing stent | F23: =prop_requiring_stent_insertion_SWL -> 0.01 | G23: =G22*F23 -> 0.5823863636 | H23: =(G23*stent_insertion_cost)+(G23*Stent_removal_cost) -> 1185.190184 | M23: Parameter | N23: URS strategy cost (per 1000) | P23: SWL strategy cost (per 1000)
C24: ancillary procedures | F24: =SUM(Scen2_SWL_ancillary_URS,Scen2_SWL_ancillary_PCNL) -> 0.07625 | G24: =$A$20*F24 -> 76.25 | H24: =(A20*Scen2_SWL_ancillary_URS*URS_cost)+(A20*Scen2_SWL_ancillary_PCNL*PCNL_cost) -> 165615.3987 | M24: Primary intervention cost | N24: =H4+H5 -> 2884275.623 | P24: =H20+H21 -> 471973.1973
D25: removing stent (if URS) | F25: =prop_requiring_stent_removal_URS -> 0.7 | G25: =A20*Scen2_SWL_ancillary_URS*F25 -> 53.375 | H25: =G25*Stent_removal_cost -> 54310.61752 | N25: =H5 -> 712270.3936 | O25: = stent costs | P25: =H21 -> 20350.58268 | Q25: = stent costs)
C26: Follow up (consult + imaging) | M26: Retreatment | N26: =H6+H7 -> 40969.82419 | P26: =H22+H23 -> 27487.07541
D27: primary intvn follow up | F27: =Inputs!D110 -> 1 | G27: =$A$20*F27 -> 1000 | H27: =G27*follow_up+(G27*Inputs!D111*Ultrasound_cost) -> 108225.9236 | N27: =H7 -> 10117.47718 | O27: = stent costs | P27: =H23 -> 1185.190184 | Q27: = stent costs)
D28: retreatment follow up | F28: =F22*Inputs!D110 -> 0.05823863636 | G28: 58.23863636 | H28: =G28*follow_up+(G28*Inputs!D111*Ultrasound_cost) -> 6302.930211 | M28: Ancillary procedures | N28: =H8 -> 162347.3842 | P28: =H24+H25 -> 219926.0163
D29: ancillary follow up | F29: =F24*Inputs!D110 -> 0.07625 | G29: 76.25 | H29: =G29*follow_up+(G29*Inputs!D111*Ultrasound_cost) -> 8252.226676 | P29: =H25 -> 54310.61752 | Q29: = stent costs)
C30: readmission to hospital | F30: =readmin_SWL -> 0.0625 | G30: 62.5 | H30: =G30*Rehosp_cost -> 19193.53371 | M30: Follow up (consultation + imaging) | N30: =SUM(H10:H12) -> 113145.2838 | P30: =SUM(H27:H29) -> 122781.0805
C31: Minor adverse events | F31: =minorAE_SWL -> 0.01497206704 | G31: 14.97206704 | H31: =G31*minorAE_cost -> 1782.790375 | M31: Readmission | N31: =H13 -> 38387.06741 | P31: =H30 -> 19193.53371
C32: Major adverse events | F32: =majorAE_SWL -> 0.005056179775 | G32: 5.056179775 | H32: =G32*majorAE_cost -> 1552.735311 | M32: Minor adverse events | N32: =H14 -> 2660.881157 | P32: =H31 -> 1782.790375
M33: Major adverse events | N33: =H15 -> 10351.56874 | P33: =H32 -> 1552.735311
H34: =SUM(H20:H32) -> 864696.4289 | I34: TOTAL COST | M34: TOTAL | N34: =H18 -> 3252137.633 | P34: =H34 -> 864696.4289
A37: LIVE RESULTS
H39: Cost per patient
G40: URS | H40: =H18/1000 -> 3252.137633
G41: SWL | H41: =H34/1000 -> 864.6964289
C42: Analysis selected: | E42: =IF(F119=1,"base case",IF(F119=2,"SA8","SA10")) -> base case | G42: incremental | H42: =H40-H41 -> 2387.441204
A45: QALY THRESHOLD ANALYSIS
G47: Threshold | H47: 20000
A48: incremental QALY needed per patient to make URS cost effective | E48: =H42/H47 -> 0.1193720602 | L48: Incremental cost divided by threshold
A49: timeframe of 2 weeks (based on the studies) | E49: =IF($I$54=1,$D$54,IF($I$54=2,$D$55,$D$56)) -> 0.03846153846 | L49: Timeframe of 2 weeks as a proportion of a year
A50: QoL difference needed per patient to make URS cost effective | E50: =E48/E49 -> 3.103673565 | L50: Dividing the incremental QALY needed by the timeframe, to be left with the QoL part of the QALY
A52: Testing timeframes until further treatments
D53: timeframe | E53: QoL difference needed per patient to make URS cost effective | G53: use dropdown to change timeframe, and see the effect on SA8 final column | M53: 2 weeks
C54: 2 weeks | D54: =2/52 -> 0.03846153846 | E54: =E48/D54 -> 3.103673565 | I54: 1 | M54: 2 months
C55: 2 months | D55: =8/52 -> 0.1538461538 | E55: =E48/D55 -> 0.7759183912 | M55: 4 months
C56: 4 months | D56: =16/52 -> 0.3076923077 | E56: =E48/D56 -> 0.3879591956
A59: QoL GAIN exploratory analyses
A72: Using effectiveness of initial treatments (from the 3 studies informing the analysis), to back-calculate difference in QoL needed between a stone free and non-stone free health state
F74: URS | G74: SWL
B75: effectiveness of initial treatments | F75: =Inputs!V15 -> 0.9318181818 | G75: =Inputs!X15 -> 0.82
B76: difference in initial effectiveness | H76: =F75-G75 -> 0.1118181818
F78: QoL difference needed between stone free and non stone free health states to make URS cost effective | H78: QoL difference needed per patient to make URS cost effective
D79: =1-D80 -> 0.8881818182 | E79: * | F79: 0 | G79: = | H79: 0 | L79: Assuming no QoL gain in those successfully treated
D80: =H76 -> 0.1118181818 | E80: * | F80: =H80/D80 -> 27.75643025 | G80: = | H80: =E50 -> 3.103673565 | L80: Apportioning the QoL difference needed per patient on average (already calculated), to only those that are stone free with a URS that wouldn’t be with SWL, gives the figure in the red box.
H81: =SUM(H79:H80) -> 3.103673565
B83: is this difference in QoL between a stone free health state and a non stone free health state achievable?
B85: worst possible health state on EQ-5D | F85: -0.594
B86: best possible health state on the EQ-5D | F86: 1
B87: maximum possible gain | F87: =-F85+F86 -> 1.594 | L87: This is the maximum change in EQ5D QoL possible using the worst possible and best possible health states
E89: hence | F89: =F80 -> 27.75643025 | G89: =IF(F89>F87,">","<") -> > | H89: =F87 -> 1.594 | I89: =IF(F89>F87,"= QoL difference not feasible","= QoL difference feasible") -> = QoL difference not feasible
A91: Using the same initial effectiveness as above, and sourced QoL values, to calculate QALY gain of URS over SWL
B93: probability
A94: effectiveness with URS | B94: =F75 -> 0.9318181818
A95: effectiveness with SWL | B95: =G75 -> 0.82
A96: differences in effectiveness | B96: =B94-B95 -> 0.1118181818
B98: QoL (EQ-5D)
A99: no stone | B99: =Inputs!G236 -> 0.874 | D99: From the health survey for England (see inputs sheet)
A100: stone | B100: =Inputs!G238 -> 0.6840147826 | D100: From a study included in the clinical review (see inputs sheet)
A101: utility gain | B101: =B99-B100 -> 0.1899852174
A104: for 2 weeks still have a stone while wait for retreatment | B104: =2/52 -> 0.03846153846 | D104: timeframe of studies
A106: Qaly gain | B106: =B101*B96*B104 -> 0.0008170692916 | D106: Utility gain multiplied by timeframe (to generate QALYs) and then multiplied by the difference in effectiveness; to apportion the QoL gain only to those incrementally stone free with URS.
A109: what would the cost difference have to be to reach this level? (rearranging ICER equation)
B111: Incremental cost | C111: incremental QALY | D111: Threshold
B112: =C112*D112 -> 16.34138583 | C112: =B106 -> 0.0008170692916 | D112: =H47 -> 20000
A116: SENSITIVITY ANALYSES
F119: 1
A124: SA8. Varying initial effectiveness of SWL
L125: SET RADIO BUTTONS TO SA8 AND FILL IN SA SWITCH WITH A VALUE TO TEST LIVE RESULTS MANUALLY (use numbers 0 to 10)
B126: SA switch | C126: 0
E128: initial effectiveness | F128: probability of needing retreatment | G128: probability of needing ancillary procedure | H128: no further treatment
B129: Corresponding input values being tested | E129: =VLOOKUP(SA8_switch,Inputs!$T$125:$X$135,2,FALSE) -> 0.82 | F129: =VLOOKUP(SA8_switch,Inputs!$T$125:$X$135,3,FALSE) -> 0.05823863636 | G129: =VLOOKUP(SA8_switch,Inputs!$T$125:$X$135,4,FALSE) -> 0.07625 | H129: =VLOOKUP(SA8_switch,Inputs!$T$125:$X$135,5,FALSE) -> 0.04551136364 | L129: change value in SA switch (between 0 and 10) to see inputs that led to the results in the corresponding number row
C132: Total cost of SWL strategy per pt | D132: Incremental cost (URS - SWL) | E132: QALY gain needed | F132: QoL gain needed | G132: Effectiveness difference with URS (I.e. proportion that QoL gain applies to) | H132: difference in QoL needed between a stone free and non stone free person | L132: be careful if move cells then have to change the cell values in the macro
B133: 0 | C133: 864.6964289 | D133: =$H$40-C133 -> 2387.441204 | E133: =D133/$H$47 -> 0.1193720602 | F133: =E133/$E$49 -> 3.103673565 | G133: =Inputs!Y125 -> 0.1118181818 | H133: =F133/G133 -> 27.75643025 | L133: conditional formatting used - red background with dark red text shows that QoL between a stone free and non-stone free state is more than the maximum EQ-5D difference.
B134: 1 | C134: 946.5075524 | D134: =$H$40-C134 -> 2305.63008 | E134: =D134/$H$47 -> 0.115281504 | F134: =E134/$E$49 -> 2.997319104 | G134: =Inputs!Y126 -> 0.1538181818 | H134: =F134/G134 -> 19.48611711
B135: 2 | C135: 1028.318676 | D135: =$H$40-C135 -> 2223.818957 | E135: 0.1111909478 | F135: 2.890964644 | G135: =Inputs!Y127 -> 0.1958181818 | H135: 14.76351489
B136: 3 | C136: 1110.129799 | D136: 2142.007833 | E136: 0.1071003917 | F136: 2.784610183 | G136: =Inputs!Y128 -> 0.2378181818 | H136: =F136/G136 -> 11.70898777
B137: 4 | C137: 1191.940923 | D137: 2060.19671 | E137: 0.1030098355 | F137: 2.678255723 | G137: =Inputs!Y129 -> 0.2798181818 | H137: 9.571414213
B138: 5 | C138: 1273.752046 | D138: 1978.385586 | E138: 0.09891927931 | F138: 2.571901262 | G138: =Inputs!Y130 -> 0.3218181818 | H138: 7.991783583
B139: 6 | C139: 1355.56317 | D139: 1896.574463 | E139: 0.09482872313 | F139: 2.465546801 | G139: =Inputs!Y131 -> 0.3638181818 | H139: 6.776865271
B140: 7 | C140: 1437.374293 | D140: 1814.763339 | E140: 0.09073816696 | F140: 2.359192341 | G140: =Inputs!Y132 -> 0.4058181818 | H140: 5.813421987
B141: 8 | C141: 1519.185417 | D141: 1732.952216 | E141: 0.08664761078 | F141: 2.25283788 | G141: =Inputs!Y133 -> 0.4478181818 | H141: 5.030697662
B142: 9 | C142: 1600.99654 | D142: =$H$40-C142 -> 1651.141092 | E142: 0.08255705461 | F142: 2.14648342 | G142: =Inputs!Y134 -> 0.4898181818 | H142: 4.382204458
B143: 10 | C143: 1682.807664 | D143: =$H$40-C143 -> 1569.329969 | E143: 0.07846649843 | F143: 2.040128959 | G143: =Inputs!Y135 -> 0.5318181818 | H143: 3.836139923
A146: SA9. Varying cost of SWL
I147: incremental cost
A148: SA9.a | B148: If assume have two initial sessions? | I148: 1935.818589
A151: SA9.b | B151: threshold analysis: what is the cost of 1 session of SWL to make the comparators cost neutral? | I151: 2708 | L151: ONLY CALCULATED USING GOAL SEEK. IF MAKE CHANGES TO ANALYSIS THEN WILL NEED TO DO THIS AGAIN
A154: SA10. Pooling retreatment and ancillary procedures
B156: SA switch | C156: 0 | L156: SET RADIO BUTTONS TO SA10 AND FILL IN SA SWITCH WITH A VALUE TO TEST LIVE RESULTS MANUALLY (use numbers 0 to 7)
E158: Proportion associated with each type of secondary procedure:
E159: Interventions
E160: SWL | H160: URS
E161: SWL (retreat) | F161: URS (anc) | G161: PCNL (anc) | H161: URS (retreat) | I161: SWL (anc) | J161: PCNL (anc)
B162: Corresponding input values being tested | E162: =VLOOKUP(SA10_switch,Inputs!$AB$148:$AH$155,2,FALSE) -> 0.05353919422 | F162: =VLOOKUP(SA10_switch,Inputs!$AB$148:$AH$155,3,FALSE) -> 0.07009716941 | G162: =VLOOKUP(SA10_switch,Inputs!$AB$148:$AH$155,4,FALSE) -> 0 | H162: =VLOOKUP(SA10_switch,Inputs!$AB$148:$AH$155,5,FALSE) -> 0.01420454545 | I162: =VLOOKUP(SA10_switch,Inputs!$AB$148:$AH$155,6,FALSE) -> 0 | J162: =VLOOKUP(SA10_switch,Inputs!$AB$148:$AH$155,7,FALSE) -> 0.03125 | L162: change value in SA switch (between 0 and 7) to see inputs that led to the results in the corresponding number row
B165: Total cost | D165: Incremental cost
B166: URS | C166: SWL
A167: 0 | B167: 3252.137633 | C167: 843.5574616 | D167: =B167-C167 -> 2408.580171
A168: 1 | B168: 3104.539411 | C168: 1005.540852 | D168: 2098.998559
A169: 2 | B169: 3178.338522 | C169: 924.5491567 | D169: 2253.789365
A170: 3 | B170: 3235.14395 | C170: 847.8229337 | D170: 2387.321017
A171: 4 | B171: 3221.338928 | C171: 879.0447477 | D171: 2342.294181
A172: 5 | B172: 3207.533906 | C172: 910.2665617 | D172: 2297.267344
A173: 6 | B173: 3193.728884 | C173: 941.4883757 | D173: 2252.240508
A174: 7 | B174: 3179.923862 | C174: 972.7101897 | D174: 2207.213672
A176: SA11. Varying proportion of URS that get stents
B178: SA switch | C178: 0 | L178: SET RADIO BUTTONS TO BASE CASE AND FILL IN SA SWITCH WITH A VALUE TO TEST LIVE RESULTS MANUALLY (use numbers 0 to 6)
E180: Proportion having stent
B181: Corresponding input values being tested | E181: =VLOOKUP(SA11_switch,Inputs!$B$161:$C$167,2,FALSE) -> 0.7 | L181: change value in SA switch (between 0 and 6) to see inputs that led to the results in the corresponding number row
B184: total cost URS | C184: total cost SWL | D184: incremental cost
A185: 0 | B185: 3252.137633 | C185: 864.6964289 | D185: =B185-C185 -> 2387.441204
A186: 1 | B186: 2529.749762 | C186: 810.3858114 | D186: =B186-C186 -> 1719.36395
A187: 2 | B187: 2736.146296 | C187: 825.9031307 | D187: 1910.243166
A188: 3 | B188: 2942.542831 | C188: 841.4204499 | D188: 2101.122381
A189: 4 | B189: 3148.939365 | C189: 856.9377692 | D189: 2292.001596
A190: 5 | B190: 3355.3359 | C190: 872.4550885 | D190: 2482.880811
A191: 6 | B191: 3561.732434 | C191: 887.9724078 | D191: 2673.760027
A193: SA8 continued: Two way sensitivity analysis exploring QoL differences - varying time between treatments and initial SWL effectiveness
B196: QoL difference between stone free and not stone free health state
C197: time to retreatments
C198: =2/52 -> 0.03846153846 | D198: =4/52 -> 0.07692307692 | E198: =8/52 -> 0.1538461538 | F198: =12/52 -> 0.2307692308 | G198: =16/52 -> 0.3076923077 | H198: =20/52 -> 0.3846153846
B199: cost difference | C199: 2 weeks | D199: 4 weeks | E199: 8 weeks | F199: 12 weeks | G199: 16 weeks | H199: 20 weeks | I199: Difference in effectiveness between primary URS and SWL that corresponds to the cost difference
B200: =D133 -> 2387.441204 | C200: =(($B200/20000)/C$198)/$I200 -> 27.75643025 | D200: =(($B200/20000)/D$198)/$I200 -> 13.87821513 | E200: 6.939107564 | F200: 4.626071709 | G200: 3.469553782 | H200: 2.775643025 | I200: =G133 -> 0.1118181818
B201: 2305.63008 | C201: =(($B201/20000)/C$198)/$I201 -> 19.48611711 | D201: 9.743058554 | E201: 4.871529277 | F201: 3.247686185 | G201: 2.435764639 | H201: 1.948611711 | I201: 0.1538181818 | L201: values in red are above the feasible range on the EQ-5D
B202: 2223.818957 | C202: 14.76351489 | D202: 7.381757447 | E202: 3.690878723 | F202: 2.460585816 | G202: 1.845439362 | H202: 1.476351489 | I202: 0.1958181818
B203: 2142.007833 | C203: 11.70898777 | D203: 5.854493887 | E203: 2.927246943 | F203: 1.951497962 | G203: 1.463623472 | H203: 1.170898777 | I203: 0.2378181818 | L203: the longer you wait for retreatments, the longer that the additional people with a stone who failed SWL have to wait and therefore the more favourable URS appears because more people are initially stone free and avoided that length of time with a stone.
B204: 2060.19671 | C204: 9.571414213 | D204: 4.785707107 | E204: 2.392853553 | F204: 1.595235702 | G204: 1.196426777 | H204: 0.9571414213 | I204: 0.2798181818
B205: 1978.385586 | C205: 7.991783583 | D205: 3.995891791 | E205: 1.997945896 | F205: 1.33196393 | G205: 0.9989729478 | H205: 0.7991783583 | I205: 0.3218181818
B206: 1896.574463 | C206: 6.776865271 | D206: 3.388432636 | E206: 1.694216318 | F206: 1.129477545 | G206: 0.8471081589 | H206: 0.6776865271 | I206: 0.3638181818
B207: 1814.763339 | C207: 5.813421987 | D207: 2.906710994 | E207: 1.453355497 | F207: 0.9689036645 | G207: 0.7266777484 | H207: 0.5813421987 | I207: 0.4058181818
B208: 1732.952216 | C208: 5.030697662 | D208: 2.515348831 | E208: 1.257674416 | F208: 0.8384496104 | G208: 0.6288372078 | H208: 0.5030697662 | I208: 0.4478181818
B209: 1651.141092 | C209: 4.382204458 | D209: 2.191102229 | E209: 1.095551114 | F209: 0.7303674096 | G209: 0.5477755572 | H209: 0.4382204458 | I209: 0.4898181818
B210: 1569.329969 | C210: =(($B210/20000)/C$198)/$I210 -> 3.836139923 | D210: 1.918069962 | E210: 0.9590349809 | F210: 0.6393566539 | G210: 0.4795174904 | H210: 0.3836139923 | I210: 0.5318181818

Sheet Scenario 3
A1: ANALYSIS
B2: KEY: SF = stone free, NSF = non stone free
B4: first line | E4: second line | I4: third line | L4: end of trial | M4: fourth line
E5: (4 weeks) | I5: (8 weeks) | L5: (12 weeks) | T5: Total costs
E6: =1/12 -> 0.08333333333 | I6: =2/12 -> 0.1666666667 | L6: =3/12 -> 0.25 | O6: QALY assumptions | T6: 1st line | U6: 2nd line | V6: 3rd line | W6: 4th line
C7: SF | Q7: primary intervention cost | T7: =A13*URS_cost -> 2172005.229
C8: =Primary_URS_success*A13 -> 908.045977 | O8: =C8*$E$69*$L$6 -> 198.408046 | R8: removing stent | T8: =prop_requiring_stent_removal_URS*A13*Stent_removal_cost -> 712270.3936
Q10: retreatment | U10: =E16*URS_cost -> 0 | V10: =I23*URS_cost -> 24965.57735 | W10: =M25*URS_cost -> 24965.57735
R11: removing stent | U11: =E16*prop_requiring_stent_removal_URS*Stent_removal_cost -> 0 | V11: =I23*prop_requiring_stent_removal_URS*Stent_removal_cost -> 8187.016019 | W11: =M25*prop_requiring_stent_removal_URS*Stent_removal_cost -> 8187.016019
X12: =SUM(W10:W11) -> 33152.59337
A13: 1000 | B13: URS | G13: SF | Q13: ancillary procedures | U13: =(E21*Scen3_URS_proportion_PCNL_2nd_line*PCNL_cost)+(E21*((Scen3_URS_proportion_SWL_2nd_line*SWL_cost_per_session)+(Scen3_URS_proportion_SWL_2nd_line*(prop_requiring_stent_insertion_SWL*stent_insertion_cost+prop_requiring_stent_insertion_SWL*Stent_removal_cost)))) -> 151977.8365
G14: =URS_2ndline_retreat_success*'Scenario 3'!E16 -> 0 | K14: SF | O14: =G14*((($E$69-$E$68)*$E$6)+($E$69*($L$6-$E$6))) -> 0
E15: retreat | K15: =URS_3rdline_success*I17 -> 0 | O15: =K15*((($E$69-$E$68)*$I$6)+($E$69*($L$6-$I$6))) -> 0
C16: NSF | E16: =URS_2ndline_retreat_prob*C17 -> 0 | G16: NSF | I16: ancillary | Q16: Follow up (consult + imaging)
C17: =Primary_URS_failure*A13 -> 91.95402299 | G17: =URS_2ndline_retreat_failure*E16 -> 0 | I17: =1*G17 -> 0 | K17: NSF | R17: primary intvn follow up | T17: =A13*(Inputs!$C$110*follow_up+Inputs!$C$111*Ultrasound_cost) -> 108225.9236
K18: =G17-K15 -> 0 | O18: =K18*(($E$69-$E$68)*$L$6) -> 0 | R18: retreatment follow up | U18: =E16*(Inputs!$C$110*follow_up+Inputs!$C$111*Ultrasound_cost) -> 0 | V18: =I23*(Inputs!$C$110*follow_up+Inputs!$C$111*Ultrasound_cost) -> 1243.976134 | W18: =M25*(Inputs!$C$110*follow_up+Inputs!$C$111*Ultrasound_cost) -> 1243.976134
G19: SF | R19: ancillary follow up | U19: =E21*(Inputs!$C$110*follow_up+Inputs!$C$111*Ultrasound_cost) -> 9951.809069
E20: ancillary | G20: =URS_2ndline_ancillary_success*E21 -> 80.45977011 | O20: =G20*((($E$69-$E$68)*$E$6)+($E$69*($L$6-$E$6))) -> 16.30661253 | X20: =SUM(W17:W19) -> 1243.976134
E21: =URS_2ndline_ancillary_prob*C17 -> 91.95402299 | K21: SF | Q21: readmission to hospital | T21: =IF($R$80=3,0,IF($R$80=4,0,A13*readmin_URS*Rehosp_cost)) -> 38387.06741
G22: NSF | I22: retreat | K22: =URS_3rdline_success*'Scenario 3'!G23 -> 0 | O22: =K22*((($E$69-$E$68)*$I$6)+($E$69*($L$6-$I$6))) -> 0 | Q22: Minor adverse events | T22: =IF($R$80=4,0,A13*minorAE_URS*minorAE_cost) -> 2660.881157
G23: =URS_2ndline_ancillary_failure*'Scenario 3'!E21 -> 11.49425287 | I23: =1*G23 -> 11.49425287 | Q23: Major adverse events | T23: =IF($R$80=3,A13*Inputs!S77*majorAE_cost,IF($R$80=4,A13*Inputs!S80*majorAE_cost,A13*majorAE_URS*majorAE_cost)) -> 10351.56874
K24: NSF | M24: retreat
K25: =I23-K22 -> 11.49425287 | M25: =K25 -> 11.49425287 | O25: =K25*(($E$69-$E$68)*$L$6) -> 1.96555972
V26: TOTAL | W26: =SUM(T7:V23) -> 3240227.279
A27: sum | C27: =SUM(C8:C25) -> 1000 | E27: =SUM(E8:E25) -> 91.95402299 | G27: =SUM(G8:G25) -> 91.95402299 | I27: =SUM(I8:I25) -> 11.49425287 | K27: =SUM(K8:K25) -> 11.49425287 | N27: total | O27: =SUM(O7:O25) -> 216.6802182 | V27: with 4th line | W27: =SUM(T7:W23) -> 3274623.849
T31: Total costs | Z31: Results breakdown for report
B32: first line | E32: second line | I32: third line | T32: 1st line | U32: 2nd line | V32: 3rd line | W32: 4th line | AA32: First line | AB32: Second line | AC32: Third line
Z33: URS
C34: SF | Q34: primary intervention | T34: =A40*No_initial_sessions*SWL_cost_per_session -> 451622.6146 | Z34: primary intervention | AA34: =SUM(T7:T8) -> 2884275.623
C35: =Primary_SWL_success*A40 -> 550.7246377 | O35: =C35*$E$69*$L$6 -> 120.3333333 | Q35: inserting + removing stent | T35: =prop_requiring_stent_insertion_SWL*A40*(stent_insertion_cost+Stent_removal_cost) -> 20350.58268 | Z35: retreatment | AB35: =SUM(U10:U11) -> 0 | AC35: =SUM(V10:V11) -> 33152.59337
Z36: ancillary procedures | AB36: =U13 -> 151977.8365
Q37: retreatment | U37: =E43*No_repeat_sessions*SWL_cost_per_session -> 52362.04228 | Z37: Follow up (consult + imaging) | AA37: =T17 -> 108225.9236 | AB37: =SUM(U18:U19) -> 9951.809069 | AC37: =V18 -> 1243.976134
R38: inserting + removing stent | U38: =E43*prop_requiring_stent_insertion_SWL*(stent_insertion_cost+Stent_removal_cost) -> 2359.487846 | Z38: readmission to hospital | AA38: =T21 -> 38387.06741
Z39: Minor adverse events | AA39: =T22 -> 2660.881157
A40: 1000 | B40: SWL | G40: SF | Q40: ancillary procedures | U40: =E48*(scen3_SWL_proportion_PCNL_2nd_line*PCNL_cost + Scen3_SWL_proportion_URS_2nd_line*URS_cost) -> 855441.3547 | V40: =(I44+I50)*URS_cost -> 188870.02 | W40: =(M45+M52)*URS_cost -> 157391.6833 | Z40: Major adverse events | AA40: =T23 -> 10351.56874
G41: =SWL_2ndline_retreat_success*'Scenario 3'!E43 -> 72.46376812 | K41: SF | O41: =G41*((($E$69-$E$68)*$E$6)+($E$69*($L$6-$E$6))) -> 14.68607961 | R41: removing stent (if URS) | U41: =E48*(Scen3_SWL_proportion_URS_2nd_line*prop_requiring_stent_removal_URS*Stent_removal_cost) -> 206455.1866 | V41: =(I44+I50)*prop_requiring_stent_removal_URS*Stent_removal_cost -> 61936.55597 | W41: =(M45+M52)*prop_requiring_stent_removal_URS*Stent_removal_cost -> 51613.79664 | AB41: TOTAL | AC41: =W26 -> 3240227.279
E42: retreat | K42: =SWL_3rdline_success*'Scenario 3'!I44 -> 7.246376812 | O42: =K42*((($E$69-$E$68)*$I$6)+($E$69*($L$6-$I$6))) -> 1.353882588 | X42: =SUM(W40:W41) -> 209005.4799
C43: NSF | E43: =SWL_2ndline_retreat_prob*C44 -> 115.942029 | G43: NSF | I43: ancillary | Q43: Follow up (consult + imaging) | Z43: SWL
C44: =Primary_SWL_failure*A40 -> 449.2753623 | G44: =SWL_2ndline_retreat_failure*E43 -> 43.47826087 | I44: =1*G44 -> 43.47826087 | K44: NSF | M44: ancillary | R44: primary intvn follow up | T44: =A40*(Inputs!$D$110*follow_up+Inputs!$D$111*Ultrasound_cost) -> 108225.9236 | Z44: primary intervention | AA44: =SUM(T34:T35) -> 471973.1973
K45: =G44-K42 -> 36.23188406 | M45: =K45 -> 36.23188406 | O45: =K45*(($E$69-$E$68)*$L$6) -> 6.195786074 | R45: retreatment follow up | U45: =E43*(Inputs!$D$110*follow_up+Inputs!$D$111*Ultrasound_cost) -> 12547.93317 | Z45: retreatment | AB45: =SUM(U37:U38) -> 54721.53012
G46: SF | R46: ancillary follow up | U46: =E48*(Inputs!$D$110*follow_up+Inputs!$D$111*Ultrasound_cost) -> 36075.30787 | V46: =(I44+I50)*(Inputs!$D$110*follow_up+Inputs!$D$111*Ultrasound_cost) -> 9410.94988 | W46: =(M45+M52)*(Inputs!$D$110*follow_up+Inputs!$D$111*Ultrasound_cost) -> 7842.458234 | Z46: ancillary procedures | AB46: =SUM(U40:U41) -> 1061896.541 | AC46: =SUM(V40:V41) -> 250806.5759
E47: ancillary | G47: =SWL_2ndline_ancillary_success*E48 -> 289.8550725 | O47: =G47*((($E$69-$E$68)*$E$6)+($E$69*($L$6-$E$6))) -> 58.74431842 | X47: =SUM(W45:W46) -> 7842.458234 | Z47: Follow up (consult + imaging) | AA47: =T44 -> 108225.9236 | AB47: =SUM(U45:U46) -> 48623.24105 | AC47: =V46 -> 9410.94988
E48: =SWl_2ndline_ancillary_prob*C44 -> 333.3333333 | K48: SF | Q48: readmission to hospital | T48: =IF($R$80=3,0,IF($R$80=4,0,A40*readmin_SWL*Rehosp_cost)) -> 19193.53371 | Z48: readmission to hospital | AA48: =T48 -> 19193.53371
G49: NSF | I49: ancillary | K49: =SWL_3rdline_success*'Scenario 3'!I50 -> 7.246376812 | O49: =K49*((($E$69-$E$68)*$I$6)+($E$69*($L$6-$I$6))) -> 1.353882588 | Q49: Minor adverse events | T49: =IF($R$80=4,0,A40*minorAE_SWL*minorAE_cost) -> 1782.790375 | Z49: Minor adverse events | AA49: =T49 -> 1782.790375
G50: =SWL_2ndline_ancillary_failure*'Scenario 3'!E48 -> 43.47826087 | I50: =1*G50 -> 43.47826087 | Q50: Major adverse events | T50: =IF($R$80=3,A40*Inputs!U77*majorAE_cost,IF($R$80=4,A40*Inputs!U80*majorAE_cost,A40*majorAE_SWL*majorAE_cost)) -> 1552.735311 | Z50: Major adverse events | AA50: =T50 -> 1552.735311
K51: NSF | M51: ancillary | AB51: TOTAL | AC51: =W53 -> 2028187.019
K52: =G50-K49 -> 36.23188406 | M52: =K52 -> 36.23188406 | O52: =K52*(($E$69-$E$68)*$L$6) -> 6.195786074
V53: TOTAL | W53: =SUM(T33:V50) -> 2028187.019
A54: sum | C54: =SUM(C35:C52) -> 1000 | E54: =SUM(E35:E52) -> 449.2753623 | G54: =SUM(G35:G52) -> 449.2753623 | I54: =SUM(I35:I52) -> 86.95652174 | K54: =SUM(K35:K52) -> 86.95652174 | N54: total | O54: =SUM(O34:O52) -> 208.8630687 | V54: with 4th line | W54: =SUM(T34:W50) -> 2245034.957
A58: RESULTS
O61: Cost per patient
N62: URS | O62: =W26/1000 -> 3240.227279
N63: SWL | O63: =W53/1000 -> 2028.187019
I64: Analysis selected: | K64: =IF(R80=1,"base case",IF(R80=2,"SA13",IF(R80=3,"SA15","SA16"))) -> base case | N64: incremental | O64: =O62-O63 -> 1212.040261
A66: QALY/QoL exploratory analyses | S66: NOTES
B68: utility decrement from stone | E68: =E69-Inputs!G238 -> 0.1899852174 | G68: what would utility decrement have to be to make URS cost effective? | N68: 1.47 | P68: uses Goal seek | S68: INSERT ALTERNATIVE VALUES INTO GREY CELL (E68) TO SEE IMPACT ON ICER
B69: uk general population utility | E69: =Inputs!G236 -> 0.874
G70: this would make the utility of not having a stone of: | N70: =E69-N68 -> -0.596
E72: QALY per patient
B73: URS | E73: =O27/1000 -> 0.2166802182
B74: SWL | E74: =O54/1000 -> 0.2088630687
B75: incremental | E75: =E73-E74 -> 0.007817149541
B76: ICER | E76: =O64/E75 -> 155048.8774
A78: SENSITIVITY ANALYSES
A80: SA12. Including fourth line treatments | R80: 1
E82: Cost per patient
D83: URS | E83: =W27/1000 -> 3274.623849
D84: SWL | E84: =W54/1000 -> 2245.034957
D85: incremental | E85: =E83-E84 -> 1029.588892
A87: SA13. Varying the effectiveness of the primary SWL
D89: SA switch | E89: 10
G91: effectiveness of primary SWL
D92: Corresponding input values being tested | G92: =VLOOKUP(SA13_switch,Inputs!$AM$125:$AN$135,2,FALSE) -> 0.4 | S92: change value in SA switch (between 0 and 10) to see inputs that led to the results in the corresponding number row
E95: Total cost of SWL strategy per pt | F95: Incremental cost (URS - SWL) | G95: Total QALY SWL per pt | H95: Incremental QALY (URS - SWL) | I95: ICER
D96: 0 | E96: 894.4794887 | F96: =$O$62-E96 -> 2345.74779 | G96: 0.2165275914 | H96: =$E$73-G96 -> 0.0001526268586 | I96: =F96/H96 -> 15369167.73
D97: =D96+1 -> 1 | E97: 1121.220995 | F97: 2119.006284 | G97: 0.2149946868 | H97: =$E$73-G97 -> 0.001685531395 | I97: =F97/H97 -> 1257174.023
D98: 2 | E98: 1347.962501 | F98: 1892.264778 | G98: 0.2134617823 | H98: 0.003218435932 | I98: 587945.4551
D99: 3 | E99: 1574.704007 | F99: 1665.523272 | G99: 0.2119288778 | H99: 0.004751340468 | I99: 350537.5554
D100: 4 | E100: 1801.445513 | F100: 1438.781767 | G100: 0.2103959732 | H100: 0.006284245005 | I100: 228950.6163
D101: 5 | E101: 2028.187019 | F101: 1212.040261 | G101: 0.2088630687 | H101: 0.007817149541 | I101: 155048.8774
D102: 6 | E102: 2123.830708 | F102: 1116.396571 | G102: 0.2082164617 | H102: 0.008463756546 | I102: 131903.1998
D103: 7 | E103: 2219.474398 | F103: 1020.752881 | G103: 0.2075698547 | H103: 0.00911036355 | I103: 112043.0458
D104: 8 | E104: 2315.118088 | F104: 925.1091912 | G104: 0.2069232477 | H104: =$E$73-G104 -> 0.009756970555 | I104: 94815.20785
D105: =D104+1 -> 9 | E105: 2410.761778 | F105: =$O$62-E105 -> 829.4655014 | G105: 0.2062766407 | H105: =$E$73-G105 -> 0.01040357756 | I105: =F105/H105 -> 79728.87179
D106: 10 | E106: 2506.405467 | F106: 733.8218116 | G106: 0.2056300337 | H106: =$E$73-G106 -> 0.01105018456 | I106: =F106/H106 -> 66408.10453
A109: SA14. Omitting readmission from the analysis
E111: Cost per patient
D112: URS | E112: =SUM(T7:V19)/1000 -> 3188.827762
D113: SWL | E113: =SUM(T34:V46)/1000 -> 2005.657959
D114: incremental | E114: =E112-E113 -> 1183.169803 | S114: Calculated through calculations rather than macro
A116: SA15. Pooled readmission and major adverse events
E118: Cost per patient
D119: URS | E119: 3204.152418
D120: SWL | E120: 2009.846867
D121: incremental | E121: =E119-E120 -> 1194.305551
A123: SA16. Pooled minor and major adverse events (readmissions also excluded)
E125: Cost per patient
D126: URS | E126: 3202.552747
D127: SWL | E127: 2010.598954
D128: incremental | E128: =E126-E127 -> 1191.953793
A130: SA17. Varying proportion of URS that get stents
D132: SA switch | E132: 0
G134: Proportion having stent
D135: Corresponding input values being tested | G135: =VLOOKUP(SA17_switch,Inputs!$B$161:$C$167,2,FALSE) -> 0.7 | S135: change value in SA switch (between 0 and 6) to see inputs that led to the results in the corresponding number row
E138: total cost URS | F138: total cost SWL | G138: incremental cost
D139: 0 | E139: 3240.227279 | F139: 2028.187019 | G139: =E139-F139 -> 1212.040261
D140: 1 | E140: 2519.769869 | F140: 1759.795276 | G140: =E140-F140 -> 759.9745934
D141: 2 | E141: 2725.614844 | F141: 1836.478631 | G141: 889.1362126
D142: 3 | E142: 2931.459818 | F142: 1913.161986 | G142: 1018.297832
D143: 4 | E143: 3137.304792 | F143: 1989.845341 | G143: 1147.459451
D144: 5 | E144: 3343.149766 | F144: 2066.528696 | G144: 1276.62107
D145: 6 | E145: 3548.99474 | F145: 2143.212051 | G145: 1405.782689
A147: SA18. Varying cost of SWL
I148: incremental cost
A149: SA18.a | B149: If assume have two initial sessions? | I149: 760.4176459
B150: this leads to an ICER of…. | I150: =I149/E75 -> 97275.56597
A152: SA18.b | B152: threshold analysis: what is the cost of 1 session of SWL to make the comparators cost neutral? | I152: 1609 | S152: Uses goal seek

Sheet Sheet1 (hidden)
A1: ROUGH CALCS
A4: best case scenario assuming extreme utilities | J4: TOTAL | K4: 3238872.261
J5: with 4th line | K5: 3273268.83
E6: 1000 | J6: TOTAL | K6: 2028172.842
C7: utility | D7: ly | E7: qaly | F7: qaly gain | J7: with 4th line | K7: 2245020.781
B8: no stone | C8: 1 | D8: =3/12 -> 0.25 | E8: =D8*C8 -> 0.25
B9: renal stone | C9: =-'Scenario 1'!#REF! ->  | D9: =3/12 -> 0.25 | E9: =D9*C9 ->  | F9: =E8-E9 -> 
A12: n | B12: 1000
B13: probability of success | C13: success | D13: failure | E13: success qaly | F13: failure qaly | G13: total qalys
A14: URS | B14: 0.93 | C14: =B12*B14 -> 930 | D14: =B12-C14 -> 70 | E14: =C14*E8 -> 232.5 | F14: =D14*E9 ->  | G14: =SUM(E14:F14) -> 
A15: SWL | B15: =B14-15% -> 0.78 | C15: =B12*B15 -> 780 | D15: =B12-C15 -> 220 | E15: =C15*E8 -> 195 | F15: =D15*E9 ->  | G15: =SUM(E15:F15) -> 
G16: =G14-G15 ->  | H16: qaly gain
G17: =G16/E6 ->  | H17: qaly gain per person
F18: cost diff. | G18: ='Scenario 1'!H42 -> 2367.519064
G19: =G18/20000 -> 0.1183759532 | H19: qaly gain to make cost effective
G21: =G18/G17 ->  | H21: ICER from calculated QALY gain | K21: so URS not cost effective at even very extreme utilities. And assuming only become stone free at the end of the 3 months. So very extreme assumptions
A24: pcnl vs swl rough calc
F26: sf | G26: nsf | I26: cost
C27: pcnl | D27: =857/1000 -> 0.857 | F27: =1000*D27 -> 857 | G27: =1000-F27 -> 143 | I27: =1000*Inputs!F198 -> 5195116.295 | K27: =G27*Inputs!#REF! ->  | M27: =SUM(I27:K27) -> 
C28: swl | D28: =D27*0.17 -> 0.14569 | F28: =1000*D28 -> 145.69 | G28: =1000-F28 -> 854.31 | I28: =1000*Inputs!F177 -> 451622.6146 | K28: =G28*Inputs!#REF! ->  | M28: =SUM(I28:K28) -> 
M30: =(M27-M28)/1000 -> 
M31: =M30/20000 ->  | N31: QALY gain needed
N32: even bigger than URS needs
